{"text_format":"1","workbook":"xlsx","n_sheets":9,"sheets":["COVER","REPORTING INSTRUCTIONS","REMARKS","ELECTRICITY","HEAT","LoadedData","PrefilledData","Parameter_mapping","Parameters"],"not_rendered":{"charts":0,"images":1,"macros":1,"external_links":0,"defined_names":20,"comments":0,"pivot_tables":0},"unopened":[],"bounds":{"document_bytes":16777216,"sheet_cells":100000,"rows_first":2000,"rows_last":500,"rows_between":2000,"halvings":0,"cell_chars":16384,"cell_head_chars":4096},"cells_cut":0,"cells_raw":0,"read":"whole","date_system":"1900"}

{"sheet":"COVER","index":0,"n_rows":81,"n_cols":6,"rows_kept":81,"cut":false,"hidden":false,"merged":[[7,0,7,19]]}
["MINI-QUESTIONNAIRE"]
["ELECTRICITY & HEAT"]
[{"$f":"ELECTRICITY!Q1","v":2020}]
[{"$f":"ELECTRICITY!R1","v":"ZZZZ"}]
[]
["EDAMIS dataset:",null,null,null,null,"ENERGY_MINIELE_A"]
[]
["Please transmit to Eurostat by 31 May 2021."]
["This reporting template is operational if and only if Visual Basic macros are operational."]
["Please click the START button to make other sheets visible."]
["If the START button does not work, please enable execution of Visual Basic macros."]
[]
[]
[]
[]
["Notes:"]
["123","- cells with white background should not be edited"]
["123","- cells in blue background can be edited (please enter new data here)"]
[{"$f":"A18+A17-A21","v":123},"- cells with bold font are formulas (and if with blue background, they can be edited)"]
["123","- cells with light green background show growth rates to pre-filled data"]
["123","- cells with dark green font are voluntary (consumption side of energy balance)"]
[]
[]
["If you have any questions or comments, please contact:"]
["Marek.Sturc@ec.europa.eu"]
[]
[]
[]
[]
[]
[]
[]
[]
[]
[]
[]
[]
[]
[]
["Albania","AL","Albania.xlsm"]
["Austria","AT","Austria.xlsm"]
["Belgium","BE","Belgium.xlsm"]
["Bosnia & Herzegovina","BA","Bosnia and Herzegovina.xlsm"]
["Bulgaria","BG","Bulgaria.xlsm"]
["Croatia","HR","Croatia.xlsm"]
["Cyprus","CY","Cyprus.xlsm"]
["Czech Republic","CZ","Czechia.xlsm"]
["Denmark","DK","Denmark.xlsm"]
["Estonia","EE","Estonia.xlsm"]
["Finland","FI","Finland.xlsm"]
["France","FR","France.xlsm"]
["Georgia","GE"]
["Germany","DE","Germany.xlsm"]
["Greece","EL","Greece.xlsm"]
["Hungary","HU","Hungary.xlsm"]
["Iceland","IS","Iceland.xlsm"]
["Ireland","IE","Ireland.xlsm"]
["Italy","IT","Italy.xlsm"]
["Kosovo (UNSCR 1244/99)","XK","Kosovo.xlsm"]
["Latvia","LV","Latvia.xlsm"]
["Lithuania","LT","Lithuania.xlsm"]
["Luxembourg","LU","Luxembourg.xlsm"]
["Malta","MT","Malta.xlsm"]
["Moldova","MD","Moldova.xlsm"]
["Montenegro","ME","Montenegro.xlsm"]
["Netherlands","NL","Netherlands.xlsm"]
["North Macedonia","MK","North Macedonia.xlsm"]
["Norway","NO","Norway.xlsm"]
["Poland","PL","Poland.xlsm"]
["Portugal","PT","Portugal.xlsm"]
["Romania","RO","Romania.xlsm"]
["Serbia","RS","Serbia.xlsm"]
["Slovak Republic","SK","Slovakia.xlsm"]
["Slovenia","SI","Slovenia.xlsm"]
["Spain","ES","Spain.xlsm"]
["Sweden","SE","Sweden.xlsm"]
["Switzerland","CH"]
["Turkey","TR"]
["Ukraine","UA"]
["United Kingdom","UK","United Kingdom.xlsm"]
["ZZZ Other (code ZZ)","ZZ"]

{"sheet":"REPORTING INSTRUCTIONS","index":1,"n_rows":27,"n_cols":2,"rows_kept":27,"cut":false,"hidden":true,"merged":[[7,0,7,8]]}
["REPORTING INSTRUCTIONS"]
[]
["You can enter values or formulas. Please do not enter links to outside files."]
[]
["When completed, please transmit via EDAMIS to Eurostat: dataset ENERGY_MINIELE_A"]
[]
["All definitions and instructions as for annual electricity and heat questionnaire apply."]
["http://ec.europa.eu/eurostat/web/energy/methodology/annual"]
["Specifically for the energy sector:"]
["Under Own use please report own use of generating units in power plants, chp plants and district heating plants."]
["For electricity, under Energy sector please exclude the Own use, Used for heat pumps, used for electric boilers, used for pumped storage (the same approach as in the annual electricity questionnaire)."]
["For heat, under Energy sector please exclude the Own use, Used for electricity production (the same approach as in the annual electricity questionnaire)."]
[]
["FLAGS - STATUS of data points"]
["Hierarchy of observation flags - STATUS of values provided:"]
[null,"\" \" normal value = real observation = final value; value with the highest accuracy and reliability"]
["P","\"P\" provisional value or preliminary value; default status"]
["E","\"E\" estimated value or experimental value; indicated lower accuracy and reliability than provisional/preliminary values"]
["U","\"U\" uncertain value or value with very low reliability; please limit the use of this flag as much as possible"]
["O","\"O\" missing value (omitted - not available) - the cell with value should be zero or empty"]
[]
["Notes for colours and highlighting"]
["123","- cells with white background cannot be edited"]
["123","- cells in blue background can be edited (please enter new data/information here)"]
[{"$f":"A24+A23-A27","v":123},"- cells with bold font are formulas (and if with blue background, they can be edited)"]
["123","- cells with light green background show growth rates to pre-filled data"]
["123","- cells with dark green font are voluntary (consumption side of energy balance)"]

{"sheet":"REMARKS","index":2,"n_rows":1,"n_cols":1,"rows_kept":1,"cut":false,"hidden":true,"merged":[]}
["REMARKS:"]

{"sheet":"ELECTRICITY","index":3,"n_rows":74,"n_cols":134,"rows_kept":74,"cut":false,"hidden":true,"merged":[]}
[null,null,"Electricity: GWh\nGROSS PRODUCTION","product_id_e","flow_id_e","product_id_i","flow_id_i",{"$f":"Q1-1&\" prefilled from annual data\"","v":"2019 prefilled from annual data"},{"$f":"Q1","v":2020},"STATUS","Growth rates\nto previous\nyear","Observation Comment",null,null,null,{"$f":"LOOKUP(R1,COVER!A40:A81,COVER!C40:C81)","v":0},2020,"ZZZZ",{"$f":"LOOKUP(R1,COVER!A40:A81,COVER!B40:B81)","v":"ZZ"},null,null,null,null,null,null,null,null,null,null,null,null,null,null,null,null,null,null,null,null,null,null,null,null,null,null,null,null,null,null,null,null,null,null,null,null,null,null,null,null,null,null,null,null,null,null,null,null,null,null,null,null,null,null,null,null,null,null,null,null,null,null,null,null,null,null,null,null,null,null,null,null,null,null,null,null,null,null,null,null,null,null,null,null,null,null,null,null,null,null,null,null,null,null,null,null,null,null,null,null,"VALUE","OBS_STATUS","OBS_COMMENT","REF_AREA","ENERGY_PRODUCT","MAIN_FLOW","FLOW_BREAKDOWN","PLANT_TECH","PLANT_TYPE","STOCKS","INFRASTRUCTURE_IND","VIS_A_VIS_AREA","MEASURE_VALUE_TYPE","FACILITY_ID","UNIT_MEASURE"]
["GWh","Electricity","Nuclear","6000",null,"GELEPROD","NUCLEAR",{"$f":"PrefilledData!B73","v":0},0,"P",{"$f":"IF(ISERROR(I2/H2),\"\",(I2/H2)-1)","v":""},null,null,null,null,null,null,null,null,null,null,null,null,null,null,null,null,null,null,null,null,null,null,null,null,null,null,null,null,null,null,null,null,null,null,null,null,null,null,null,null,null,null,null,null,null,null,null,null,null,null,null,null,null,null,null,null,null,null,null,null,null,null,null,null,null,null,null,null,null,null,null,null,null,null,null,null,null,null,null,null,null,null,null,null,null,null,null,null,null,null,null,null,null,null,null,null,null,null,null,null,null,null,null,null,null,null,null,null,{"$f":"IF(J2=\"O\",\"NaN\",ROUND(I2,3))","v":0},{"$f":"IF(J2=\"\",\"A\",J2)","v":"P"},{"$f":"LEFT(TRIM(L2),255)","v":""},{"$f":"$S$1","v":"ZZ"},"E7000","GROSPROD","_Z","NUCLEAR","_T","_Z","_Z","_Z","ENERGY","_Z","GWH"]
["GWh","Electricity","Hydro","6000",null,"GELEPROD","HYDRO",{"$f":"H4+H5+H7","v":0},{"$f":"I4+I5+I7","v":0},"P","",null,null,null,null,null,null,null,null,null,null,null,null,null,null,null,null,null,null,null,null,null,null,null,null,null,null,null,null,null,null,null,null,null,null,null,null,null,null,null,null,null,null,null,null,null,null,null,null,null,null,null,null,null,null,null,null,null,null,null,null,null,null,null,null,null,null,null,null,null,null,null,null,null,null,null,null,null,null,null,null,null,null,null,null,null,null,null,null,null,null,null,null,null,null,null,null,null,null,null,null,null,null,null,null,null,null,null,null,{"$f":"IF(J3=\"O\",\"NaN\",ROUND(I3,3))","v":0},{"$f":"IF(J3=\"\",\"A\",J3)","v":"P"},{"$f":"LEFT(TRIM(L3),255)","v":""},"ZZ","E7000","GROSPROD","_Z","HYDRO","_T","_Z","_Z","_Z","ENERGY","_Z","GWH"]
["GWh","Electricity","     Pure hydro","6000",null,"GELEPROD",null,{"$f":"PrefilledData!B152+PrefilledData!B157","v":0},0,"P","",null,null,null,null,null,null,null,null,null,null,null,null,null,null,null,null,null,null,null,null,null,null,null,null,null,null,null,null,null,null,null,null,null,null,null,null,null,null,null,null,null,null,null,null,null,null,null,null,null,null,null,null,null,null,null,null,null,null,null,null,null,null,null,null,null,null,null,null,null,null,null,null,null,null,null,null,null,null,null,null,null,null,null,null,null,null,null,null,null,null,null,null,null,null,null,null,null,null,null,null,null,null,null,null,null,null,null,null,0,"P","","ZZ","E7000","GROSPROD","_Z","HYDPUR","_T","_Z","_Z","_Z","ENERGY","_Z","GWH"]
["GWh","Electricity","     Mixed hydro","6000",null,"GELEPROD",null,{"$f":"PrefilledData!B153+PrefilledData!B158","v":0},0,"P","",null,null,null,null,null,null,null,null,null,null,null,null,null,null,null,null,null,null,null,null,null,null,null,null,null,null,null,null,null,null,null,null,null,null,null,null,null,null,null,null,null,null,null,null,null,null,null,null,null,null,null,null,null,null,null,null,null,null,null,null,null,null,null,null,null,null,null,null,null,null,null,null,null,null,null,null,null,null,null,null,null,null,null,null,null,null,null,null,null,null,null,null,null,null,null,null,null,null,null,null,null,null,null,null,null,null,null,null,0,"P","","ZZ","E7000","GROSPROD","_Z","HYDMIX","_T","_Z","_Z","_Z","ENERGY","_Z","GWH"]
["GWh","Electricity","          of which:  pumping",null,null,null,null,{"$f":"H5-PrefilledData!B148","v":0},0,"P","",null,null,null,null,null,null,null,null,null,null,null,null,null,null,null,null,null,null,null,null,null,null,null,null,null,null,null,null,null,null,null,null,null,null,null,null,null,null,null,null,null,null,null,null,null,null,null,null,null,null,null,null,null,null,null,null,null,null,null,null,null,null,null,null,null,null,null,null,null,null,null,null,null,null,null,null,null,null,null,null,null,null,null,null,null,null,null,null,null,null,null,null,null,null,null,null,null,null,null,null,null,null,null,null,null,null,null,null,0,"P","","ZZ","E7000","GROSPROD","_Z","HYDPUMP","_T","_Z","_Z","_Z","ENERGY","_Z","GWH"]
["GWh","Electricity","     Pure pumped storage","6000",null,"GELEPROD",null,{"$f":"PrefilledData!B154+PrefilledData!B159","v":0},0,"P","",null,null,null,null,null,null,null,null,null,null,null,null,null,null,null,null,null,null,null,null,null,null,null,null,null,null,null,null,null,null,null,null,null,null,null,null,null,null,null,null,null,null,null,null,null,null,null,null,null,null,null,null,null,null,null,null,null,null,null,null,null,null,null,null,null,null,null,null,null,null,null,null,null,null,null,null,null,null,null,null,null,null,null,null,null,null,null,null,null,null,null,null,null,null,null,null,null,null,null,null,null,null,null,null,null,null,null,null,0,"P","","ZZ","E7000","GROSPROD","_Z","HYDPPS","_T","_Z","_Z","_Z","ENERGY","_Z","GWH"]
["GWh","Electricity","Geothermal","6000",null,"GELEPROD","GEOTHERM",{"$f":"PrefilledData!B53","v":0},0,"P","",null,null,null,null,null,null,null,null,null,null,null,null,null,null,null,null,null,null,null,null,null,null,null,null,null,null,null,null,null,null,null,null,null,null,null,null,null,null,null,null,null,null,null,null,null,null,null,null,null,null,null,null,null,null,null,null,null,null,null,null,null,null,null,null,null,null,null,null,null,null,null,null,null,null,null,null,null,null,null,null,null,null,null,null,null,null,null,null,null,null,null,null,null,null,null,null,null,null,null,null,null,null,null,null,null,null,null,null,0,"P","","ZZ","E7000","GROSPROD","_Z","GEOTHERM","_T","_Z","_Z","_Z","ENERGY","_Z","GWH"]
["GWh","Electricity","Solar","6000",null,"GELEPROD","SOLAR",{"$f":"H10+H11","v":0},{"$f":"I10+I11","v":0},"P","",null,null,null,null,null,null,null,null,null,null,null,null,null,null,null,null,null,null,null,null,null,null,null,null,null,null,null,null,null,null,null,null,null,null,null,null,null,null,null,null,null,null,null,null,null,null,null,null,null,null,null,null,null,null,null,null,null,null,null,null,null,null,null,null,null,null,null,null,null,null,null,null,null,null,null,null,null,null,null,null,null,null,null,null,null,null,null,null,null,null,null,null,null,null,null,null,null,null,null,null,null,null,null,null,null,null,null,null,0,"P","","ZZ","E7000","GROSPROD","_Z","SOLAR","_T","_Z","_Z","_Z","ENERGY","_Z","GWH"]
["GWh","Electricity","     Solar photovoltaic","6000",null,"GELEPROD","SOLARPV",{"$f":"PrefilledData!B56","v":0},0,"P","",null,null,null,null,null,null,null,null,null,null,null,null,null,null,null,null,null,null,null,null,null,null,null,null,null,null,null,null,null,null,null,null,null,null,null,null,null,null,null,null,null,null,null,null,null,null,null,null,null,null,null,null,null,null,null,null,null,null,null,null,null,null,null,null,null,null,null,null,null,null,null,null,null,null,null,null,null,null,null,null,null,null,null,null,null,null,null,null,null,null,null,null,null,null,null,null,null,null,null,null,null,null,null,null,null,null,null,null,0,"P","","ZZ","E7000","GROSPROD","_Z","SOLARPV","_T","_Z","_Z","_Z","ENERGY","_Z","GWH"]
["GWh","Electricity","     Solar thermal","6000",null,"GELEPROD","SOLARTH",{"$f":"PrefilledData!B55","v":0},0,"P","",null,null,null,null,null,null,null,null,null,null,null,null,null,null,null,null,null,null,null,null,null,null,null,null,null,null,null,null,null,null,null,null,null,null,null,null,null,null,null,null,null,null,null,null,null,null,null,null,null,null,null,null,null,null,null,null,null,null,null,null,null,null,null,null,null,null,null,null,null,null,null,null,null,null,null,null,null,null,null,null,null,null,null,null,null,null,null,null,null,null,null,null,null,null,null,null,null,null,null,null,null,null,null,null,null,null,null,null,0,"P","","ZZ","E7000","GROSPROD","_Z","SOLARTH","_T","_Z","_Z","_Z","ENERGY","_Z","GWH"]
["GWh","Electricity","Tide, wave and ocean","6000",null,"GELEPROD","TIDE",{"$f":"PrefilledData!B57","v":0},0,"P","",null,null,null,null,null,null,null,null,null,null,null,null,null,null,null,null,null,null,null,null,null,null,null,null,null,null,null,null,null,null,null,null,null,null,null,null,null,null,null,null,null,null,null,null,null,null,null,null,null,null,null,null,null,null,null,null,null,null,null,null,null,null,null,null,null,null,null,null,null,null,null,null,null,null,null,null,null,null,null,null,null,null,null,null,null,null,null,null,null,null,null,null,null,null,null,null,null,null,null,null,null,null,null,null,null,null,null,null,0,"P","","ZZ","E7000","GROSPROD","_Z","TIDE","_T","_Z","_Z","_Z","ENERGY","_Z","GWH"]
["GWh","Electricity","Wind","6000",null,"GELEPROD","WIND",{"$f":"H14+H15","v":0},{"$f":"I14+I15","v":0},"P","",null,null,null,null,null,null,null,null,null,null,null,null,null,null,null,null,null,null,null,null,null,null,null,null,null,null,null,null,null,null,null,null,null,null,null,null,null,null,null,null,null,null,null,null,null,null,null,null,null,null,null,null,null,null,null,null,null,null,null,null,null,null,null,null,null,null,null,null,null,null,null,null,null,null,null,null,null,null,null,null,null,null,null,null,null,null,null,null,null,null,null,null,null,null,null,null,null,null,null,null,null,null,null,null,null,null,null,null,0,"P","","ZZ","E7000","GROSPROD","_Z","WIND","_T","_Z","_Z","_Z","ENERGY","_Z","GWH"]
["GWh","Electricity","     Onshore","6000",null,"GELEPROD",null,{"$f":"PrefilledData!B162+PrefilledData!B163","v":0},0,"P","",null,null,null,null,null,null,null,null,null,null,null,null,null,null,null,null,null,null,null,null,null,null,null,null,null,null,null,null,null,null,null,null,null,null,null,null,null,null,null,null,null,null,null,null,null,null,null,null,null,null,null,null,null,null,null,null,null,null,null,null,null,null,null,null,null,null,null,null,null,null,null,null,null,null,null,null,null,null,null,null,null,null,null,null,null,null,null,null,null,null,null,null,null,null,null,null,null,null,null,null,null,null,null,null,null,null,null,null,0,"P","","ZZ","E7000","GROSPROD","_Z","WINDON","_T","_Z","_Z","_Z","ENERGY","_Z","GWH"]
["GWh","Electricity","     Offshore","6000",null,"GELEPROD",null,{"$f":"PrefilledData!B164+PrefilledData!B165","v":0},0,"P","",null,null,null,null,null,null,null,null,null,null,null,null,null,null,null,null,null,null,null,null,null,null,null,null,null,null,null,null,null,null,null,null,null,null,null,null,null,null,null,null,null,null,null,null,null,null,null,null,null,null,null,null,null,null,null,null,null,null,null,null,null,null,null,null,null,null,null,null,null,null,null,null,null,null,null,null,null,null,null,null,null,null,null,null,null,null,null,null,null,null,null,null,null,null,null,null,null,null,null,null,null,null,null,null,null,null,null,null,0,"P","","ZZ","E7000","GROSPROD","_Z","WINDOFF","_T","_Z","_Z","_Z","ENERGY","_Z","GWH"]
["GWh","Electricity","Industrial Waste (Non-Renew.)","6000",null,"GELEPROD","INDWASTE",{"$f":"PrefilledData!B69","v":0},0,"P","",null,null,null,null,null,null,null,null,null,null,null,null,null,null,null,null,null,null,null,null,null,null,null,null,null,null,null,null,null,null,null,null,null,null,null,null,null,null,null,null,null,null,null,null,null,null,null,null,null,null,null,null,null,null,null,null,null,null,null,null,null,null,null,null,null,null,null,null,null,null,null,null,null,null,null,null,null,null,null,null,null,null,null,null,null,null,null,null,null,null,null,null,null,null,null,null,null,null,null,null,null,null,null,null,null,null,null,null,0,"P","","ZZ","E7000","GROSPROD","_Z","COMBINWA","_T","_Z","_Z","_Z","ENERGY","_Z","GWH"]
["GWh","Electricity","Municipal Waste (Renew.)","6000",null,"GELEPROD","MUNWASTER",{"$f":"PrefilledData!B70","v":0},0,"P","",null,null,null,null,null,null,null,null,null,null,null,null,null,null,null,null,null,null,null,null,null,null,null,null,null,null,null,null,null,null,null,null,null,null,null,null,null,null,null,null,null,null,null,null,null,null,null,null,null,null,null,null,null,null,null,null,null,null,null,null,null,null,null,null,null,null,null,null,null,null,null,null,null,null,null,null,null,null,null,null,null,null,null,null,null,null,null,null,null,null,null,null,null,null,null,null,null,null,null,null,null,null,null,null,null,null,null,null,0,"P","","ZZ","E7000","GROSPROD","_Z","COMBMURW","_T","_Z","_Z","_Z","ENERGY","_Z","GWH"]
["GWh","Electricity","Municipal Waste (Non-Renew.)","6000",null,"GELEPROD","MUNWASTEN",{"$f":"PrefilledData!B71","v":0},0,"P","",null,null,null,null,null,null,null,null,null,null,null,null,null,null,null,null,null,null,null,null,null,null,null,null,null,null,null,null,null,null,null,null,null,null,null,null,null,null,null,null,null,null,null,null,null,null,null,null,null,null,null,null,null,null,null,null,null,null,null,null,null,null,null,null,null,null,null,null,null,null,null,null,null,null,null,null,null,null,null,null,null,null,null,null,null,null,null,null,null,null,null,null,null,null,null,null,null,null,null,null,null,null,null,null,null,null,null,null,0,"P","","ZZ","E7000","GROSPROD","_Z","COMBMUNR","_T","_Z","_Z","_Z","ENERGY","_Z","GWH"]
["GWh","Electricity","Solid Biofuels","6000",null,"GELEPROD","SBIOFUELS",{"$f":"PrefilledData!B59","v":0},0,"P","",null,null,null,null,null,null,null,null,null,null,null,null,null,null,null,null,null,null,null,null,null,null,null,null,null,null,null,null,null,null,null,null,null,null,null,null,null,null,null,null,null,null,null,null,null,null,null,null,null,null,null,null,null,null,null,null,null,null,null,null,null,null,null,null,null,null,null,null,null,null,null,null,null,null,null,null,null,null,null,null,null,null,null,null,null,null,null,null,null,null,null,null,null,null,null,null,null,null,null,null,null,null,null,null,null,null,null,null,0,"P","","ZZ","E7000","GROSPROD","_Z","COMBSOBI","_T","_Z","_Z","_Z","ENERGY","_Z","GWH"]
["GWh","Electricity","Biogases","6000",null,"GELEPROD","BIOGASES",{"$f":"PrefilledData!B68","v":0},0,"P","",null,null,null,null,null,null,null,null,null,null,null,null,null,null,null,null,null,null,null,null,null,null,null,null,null,null,null,null,null,null,null,null,null,null,null,null,null,null,null,null,null,null,null,null,null,null,null,null,null,null,null,null,null,null,null,null,null,null,null,null,null,null,null,null,null,null,null,null,null,null,null,null,null,null,null,null,null,null,null,null,null,null,null,null,null,null,null,null,null,null,null,null,null,null,null,null,null,null,null,null,null,null,null,null,null,null,null,null,0,"P","","ZZ","E7000","GROSPROD","_Z","COMBBIGA","_T","_Z","_Z","_Z","ENERGY","_Z","GWH"]
["GWh","Electricity","Biodiesel","6000",null,"GELEPROD","BIODIESEL",{"$f":"PrefilledData!B63","v":0},0,"P","",null,null,null,null,null,null,null,null,null,null,null,null,null,null,null,null,null,null,null,null,null,null,null,null,null,null,null,null,null,null,null,null,null,null,null,null,null,null,null,null,null,null,null,null,null,null,null,null,null,null,null,null,null,null,null,null,null,null,null,null,null,null,null,null,null,null,null,null,null,null,null,null,null,null,null,null,null,null,null,null,null,null,null,null,null,null,null,null,null,null,null,null,null,null,null,null,null,null,null,null,null,null,null,null,null,null,null,null,0,"P","","ZZ","E7000","GROSPROD","_Z","COMBBIDI","_T","_Z","_Z","_Z","ENERGY","_Z","GWH"]
["GWh","Electricity","Biogasolines",null,null,null,null,{"$f":"PrefilledData!B61","v":0},0,"P","",null,null,null,null,null,null,null,null,null,null,null,null,null,null,null,null,null,null,null,null,null,null,null,null,null,null,null,null,null,null,null,null,null,null,null,null,null,null,null,null,null,null,null,null,null,null,null,null,null,null,null,null,null,null,null,null,null,null,null,null,null,null,null,null,null,null,null,null,null,null,null,null,null,null,null,null,null,null,null,null,null,null,null,null,null,null,null,null,null,null,null,null,null,null,null,null,null,null,null,null,null,null,null,null,null,null,null,null,0,"P","","ZZ","E7000","GROSPROD","_Z","COMBBIGO","_T","_Z","_Z","_Z","ENERGY","_Z","GWH"]
["GWh","Electricity","Other Liquid Biofuels","6000",null,"GELEPROD","OBIOLIQ",{"$f":"PrefilledData!B67","v":0},0,"P","",null,null,null,null,null,null,null,null,null,null,null,null,null,null,null,null,null,null,null,null,null,null,null,null,null,null,null,null,null,null,null,null,null,null,null,null,null,null,null,null,null,null,null,null,null,null,null,null,null,null,null,null,null,null,null,null,null,null,null,null,null,null,null,null,null,null,null,null,null,null,null,null,null,null,null,null,null,null,null,null,null,null,null,null,null,null,null,null,null,null,null,null,null,null,null,null,null,null,null,null,null,null,null,null,null,null,null,null,0,"P","","ZZ","E7000","GROSPROD","_Z","COMBBIOT","_T","_Z","_Z","_Z","ENERGY","_Z","GWH"]
["GWh","Electricity","   of which from sustainable bioliquids",null,null,null,null,{"$f":"PrefilledData!B170","v":0},0,"P",{"$f":"IF(ISERROR(I24/H24),\"\",(I24/H24)-1)","v":""},null,null,null,null,null,null,null,null,null,null,null,null,null,null,null,null,null,null,null,null,null,null,null,null,null,null,null,null,null,null,null,null,null,null,null,null,null,null,null,null,null,null,null,null,null,null,null,null,null,null,null,null,null,null,null,null,null,null,null,null,null,null,null,null,null,null,null,null,null,null,null,null,null,null,null,null,null,null,null,null,null,null,null,null,null,null,null,null,null,null,null,null,null,null,null,null,null,null,null,null,null,null,null,null,null,null,null,null,0,"P","","ZZ","E7000","GROSPROD","_Z","BLBIOLS","_T","_Z","_Z","_Z","ENERGY","_Z","GWH"]
["GWh","Electricity","Anthracite","6000",null,"GELEPROD","ANTCOAL",{"$f":"PrefilledData!B8","v":0},0,"P","",null,null,null,null,null,null,null,null,null,null,null,null,null,null,null,null,null,null,null,null,null,null,null,null,null,null,null,null,null,null,null,null,null,null,null,null,null,null,null,null,null,null,null,null,null,null,null,null,null,null,null,null,null,null,null,null,null,null,null,null,null,null,null,null,null,null,null,null,null,null,null,null,null,null,null,null,null,null,null,null,null,null,null,null,null,null,null,null,null,null,null,null,null,null,null,null,null,null,null,null,null,null,null,null,null,null,null,null,0,"P","","ZZ","E7000","GROSPROD","_Z","COMBANTH","_T","_Z","_Z","_Z","ENERGY","_Z","GWH"]
["GWh","Electricity","Coking Coal","6000",null,"GELEPROD","COKCOAL",{"$f":"PrefilledData!B9","v":0},0,"P","",null,null,null,null,null,null,null,null,null,null,null,null,null,null,null,null,null,null,null,null,null,null,null,null,null,null,null,null,null,null,null,null,null,null,null,null,null,null,null,null,null,null,null,null,null,null,null,null,null,null,null,null,null,null,null,null,null,null,null,null,null,null,null,null,null,null,null,null,null,null,null,null,null,null,null,null,null,null,null,null,null,null,null,null,null,null,null,null,null,null,null,null,null,null,null,null,null,null,null,null,null,null,null,null,null,null,null,null,0,"P","","ZZ","E7000","GROSPROD","_Z","COMBCOKING","_T","_Z","_Z","_Z","ENERGY","_Z","GWH"]
["GWh","Electricity","Other Bituminous Coal","6000",null,"GELEPROD","BITCOAL",{"$f":"PrefilledData!B10","v":0},0,"P","",null,null,null,null,null,null,null,null,null,null,null,null,null,null,null,null,null,null,null,null,null,null,null,null,null,null,null,null,null,null,null,null,null,null,null,null,null,null,null,null,null,null,null,null,null,null,null,null,null,null,null,null,null,null,null,null,null,null,null,null,null,null,null,null,null,null,null,null,null,null,null,null,null,null,null,null,null,null,null,null,null,null,null,null,null,null,null,null,null,null,null,null,null,null,null,null,null,null,null,null,null,null,null,null,null,null,null,null,0,"P","","ZZ","E7000","GROSPROD","_Z","COMBOTHBIT","_T","_Z","_Z","_Z","ENERGY","_Z","GWH"]
["GWh","Electricity","Sub-Bituminous Coal","6000",null,"GELEPROD","SUBCOAL",{"$f":"PrefilledData!B11","v":0},0,"P","",null,null,null,null,null,null,null,null,null,null,null,null,null,null,null,null,null,null,null,null,null,null,null,null,null,null,null,null,null,null,null,null,null,null,null,null,null,null,null,null,null,null,null,null,null,null,null,null,null,null,null,null,null,null,null,null,null,null,null,null,null,null,null,null,null,null,null,null,null,null,null,null,null,null,null,null,null,null,null,null,null,null,null,null,null,null,null,null,null,null,null,null,null,null,null,null,null,null,null,null,null,null,null,null,null,null,null,null,0,"P","","ZZ","E7000","GROSPROD","_Z","COMBSUBBIT","_T","_Z","_Z","_Z","ENERGY","_Z","GWH"]
["GWh","Electricity","Lignite","6000",null,"GELEPROD","LIGNITE",{"$f":"PrefilledData!B12","v":0},0,"P","",null,null,null,null,null,null,null,null,null,null,null,null,null,null,null,null,null,null,null,null,null,null,null,null,null,null,null,null,null,null,null,null,null,null,null,null,null,null,null,null,null,null,null,null,null,null,null,null,null,null,null,null,null,null,null,null,null,null,null,null,null,null,null,null,null,null,null,null,null,null,null,null,null,null,null,null,null,null,null,null,null,null,null,null,null,null,null,null,null,null,null,null,null,null,null,null,null,null,null,null,null,null,null,null,null,null,null,null,0,"P","","ZZ","E7000","GROSPROD","_Z","COMBLIGNIT","_T","_Z","_Z","_Z","ENERGY","_Z","GWH"]
["GWh","Electricity","Patent Fuel","6000",null,"GELEPROD","PATFUEL",{"$f":"PrefilledData!B15","v":0},0,"P","",null,null,null,null,null,null,null,null,null,null,null,null,null,null,null,null,null,null,null,null,null,null,null,null,null,null,null,null,null,null,null,null,null,null,null,null,null,null,null,null,null,null,null,null,null,null,null,null,null,null,null,null,null,null,null,null,null,null,null,null,null,null,null,null,null,null,null,null,null,null,null,null,null,null,null,null,null,null,null,null,null,null,null,null,null,null,null,null,null,null,null,null,null,null,null,null,null,null,null,null,null,null,null,null,null,null,null,null,0,"P","","ZZ","E7000","GROSPROD","_Z","COMBPATFL","_T","_Z","_Z","_Z","ENERGY","_Z","GWH"]
["GWh","Electricity","Coke Oven Coke","6000",null,"GELEPROD","OVENCOKE",{"$f":"PrefilledData!B13","v":0},0,"P","",null,null,null,null,null,null,null,null,null,null,null,null,null,null,null,null,null,null,null,null,null,null,null,null,null,null,null,null,null,null,null,null,null,null,null,null,null,null,null,null,null,null,null,null,null,null,null,null,null,null,null,null,null,null,null,null,null,null,null,null,null,null,null,null,null,null,null,null,null,null,null,null,null,null,null,null,null,null,null,null,null,null,null,null,null,null,null,null,null,null,null,null,null,null,null,null,null,null,null,null,null,null,null,null,null,null,null,null,0,"P","","ZZ","E7000","GROSPROD","_Z","COMBCOKE","_T","_Z","_Z","_Z","ENERGY","_Z","GWH"]
["GWh","Electricity","Gas Coke","6000",null,"GELEPROD","GASCOKE",{"$f":"PrefilledData!B14","v":0},0,"P","",null,null,null,null,null,null,null,null,null,null,null,null,null,null,null,null,null,null,null,null,null,null,null,null,null,null,null,null,null,null,null,null,null,null,null,null,null,null,null,null,null,null,null,null,null,null,null,null,null,null,null,null,null,null,null,null,null,null,null,null,null,null,null,null,null,null,null,null,null,null,null,null,null,null,null,null,null,null,null,null,null,null,null,null,null,null,null,null,null,null,null,null,null,null,null,null,null,null,null,null,null,null,null,null,null,null,null,null,0,"P","","ZZ","E7000","GROSPROD","_Z","COMBGASCOK","_T","_Z","_Z","_Z","ENERGY","_Z","GWH"]
["GWh","Electricity","Coal Tar","6000",null,"GELEPROD","COALTAR",{"$f":"PrefilledData!B17","v":0},0,"P","",null,null,null,null,null,null,null,null,null,null,null,null,null,null,null,null,null,null,null,null,null,null,null,null,null,null,null,null,null,null,null,null,null,null,null,null,null,null,null,null,null,null,null,null,null,null,null,null,null,null,null,null,null,null,null,null,null,null,null,null,null,null,null,null,null,null,null,null,null,null,null,null,null,null,null,null,null,null,null,null,null,null,null,null,null,null,null,null,null,null,null,null,null,null,null,null,null,null,null,null,null,null,null,null,null,null,null,null,0,"P","","ZZ","E7000","GROSPROD","_Z","COMBCOALTAR","_T","_Z","_Z","_Z","ENERGY","_Z","GWH"]
["GWh","Electricity","BKB","6000",null,"GELEPROD","BKB",{"$f":"PrefilledData!B16","v":0},0,"P","",null,null,null,null,null,null,null,null,null,null,null,null,null,null,null,null,null,null,null,null,null,null,null,null,null,null,null,null,null,null,null,null,null,null,null,null,null,null,null,null,null,null,null,null,null,null,null,null,null,null,null,null,null,null,null,null,null,null,null,null,null,null,null,null,null,null,null,null,null,null,null,null,null,null,null,null,null,null,null,null,null,null,null,null,null,null,null,null,null,null,null,null,null,null,null,null,null,null,null,null,null,null,null,null,null,null,null,null,0,"P","","ZZ","E7000","GROSPROD","_Z","COMBBKB","_T","_Z","_Z","_Z","ENERGY","_Z","GWH"]
["GWh","Electricity","Gas Works Gas","6000",null,"GELEPROD","GASWKSGS",{"$f":"PrefilledData!B20","v":0},0,"P","",null,null,null,null,null,null,null,null,null,null,null,null,null,null,null,null,null,null,null,null,null,null,null,null,null,null,null,null,null,null,null,null,null,null,null,null,null,null,null,null,null,null,null,null,null,null,null,null,null,null,null,null,null,null,null,null,null,null,null,null,null,null,null,null,null,null,null,null,null,null,null,null,null,null,null,null,null,null,null,null,null,null,null,null,null,null,null,null,null,null,null,null,null,null,null,null,null,null,null,null,null,null,null,null,null,null,null,null,0,"P","","ZZ","E7000","GROSPROD","_Z","COMBGASWKSG","_T","_Z","_Z","_Z","ENERGY","_Z","GWH"]
["GWh","Electricity","Coke Oven Gas","6000",null,"GELEPROD","COKEOVGS",{"$f":"PrefilledData!B19","v":0},0,"P","",null,null,null,null,null,null,null,null,null,null,null,null,null,null,null,null,null,null,null,null,null,null,null,null,null,null,null,null,null,null,null,null,null,null,null,null,null,null,null,null,null,null,null,null,null,null,null,null,null,null,null,null,null,null,null,null,null,null,null,null,null,null,null,null,null,null,null,null,null,null,null,null,null,null,null,null,null,null,null,null,null,null,null,null,null,null,null,null,null,null,null,null,null,null,null,null,null,null,null,null,null,null,null,null,null,null,null,null,0,"P","","ZZ","E7000","GROSPROD","_Z","COMBCOALGAS","_T","_Z","_Z","_Z","ENERGY","_Z","GWH"]
["GWh","Electricity","Blast Furnace Gas","6000",null,"GELEPROD","BLFURGS",{"$f":"PrefilledData!B21","v":0},0,"P",{"$f":"IF(ISERROR(I37/H37),\"\",(I37/H37)-1)","v":""},null,null,null,null,null,null,null,null,null,null,null,null,null,null,null,null,null,null,null,null,null,null,null,null,null,null,null,null,null,null,null,null,null,null,null,null,null,null,null,null,null,null,null,null,null,null,null,null,null,null,null,null,null,null,null,null,null,null,null,null,null,null,null,null,null,null,null,null,null,null,null,null,null,null,null,null,null,null,null,null,null,null,null,null,null,null,null,null,null,null,null,null,null,null,null,null,null,null,null,null,null,null,null,null,null,null,null,null,0,"P","","ZZ","E7000","GROSPROD","_Z","COMBBLFGAS","_T","_Z","_Z","_Z","ENERGY","_Z","GWH"]
["GWh","Electricity","Other Recovered Gases","6000",null,"GELEPROD","OGASES",{"$f":"PrefilledData!B22","v":0},0,"P","",null,null,null,null,null,null,null,null,null,null,null,null,null,null,null,null,null,null,null,null,null,null,null,null,null,null,null,null,null,null,null,null,null,null,null,null,null,null,null,null,null,null,null,null,null,null,null,null,null,null,null,null,null,null,null,null,null,null,null,null,null,null,null,null,null,null,null,null,null,null,null,null,null,null,null,null,null,null,null,null,null,null,null,null,null,null,null,null,null,null,null,null,null,null,null,null,null,null,null,null,null,null,null,null,null,null,null,null,0,"P","","ZZ","E7000","GROSPROD","_Z","COMBOTHGAS","_T","_Z","_Z","_Z","ENERGY","_Z","GWH"]
["GWh","Electricity","Peat","6000",null,"GELEPROD","PEAT",{"$f":"PrefilledData!B24","v":0},0,"P","",null,null,null,null,null,null,null,null,null,null,null,null,null,null,null,null,null,null,null,null,null,null,null,null,null,null,null,null,null,null,null,null,null,null,null,null,null,null,null,null,null,null,null,null,null,null,null,null,null,null,null,null,null,null,null,null,null,null,null,null,null,null,null,null,null,null,null,null,null,null,null,null,null,null,null,null,null,null,null,null,null,null,null,null,null,null,null,null,null,null,null,null,null,null,null,null,null,null,null,null,null,null,null,null,null,null,null,null,0,"P","","ZZ","E7000","GROSPROD","_Z","COMBPEAT","_T","_Z","_Z","_Z","ENERGY","_Z","GWH"]
["GWh","Electricity","Peat Products","6000",null,"GELEPROD","PEATPROD",{"$f":"PrefilledData!B25","v":0},0,"P","",null,null,null,null,null,null,null,null,null,null,null,null,null,null,null,null,null,null,null,null,null,null,null,null,null,null,null,null,null,null,null,null,null,null,null,null,null,null,null,null,null,null,null,null,null,null,null,null,null,null,null,null,null,null,null,null,null,null,null,null,null,null,null,null,null,null,null,null,null,null,null,null,null,null,null,null,null,null,null,null,null,null,null,null,null,null,null,null,null,null,null,null,null,null,null,null,null,null,null,null,null,null,null,null,null,null,null,null,0,"P","","ZZ","E7000","GROSPROD","_Z","COMBPEATPR","_T","_Z","_Z","_Z","ENERGY","_Z","GWH"]
["GWh","Electricity","Oil Shale and Oil Sands","6000",null,"GELEPROD","OILSHALE",{"$f":"PrefilledData!B26","v":0},0,"P","",null,null,null,null,null,null,null,null,null,null,null,null,null,null,null,null,null,null,null,null,null,null,null,null,null,null,null,null,null,null,null,null,null,null,null,null,null,null,null,null,null,null,null,null,null,null,null,null,null,null,null,null,null,null,null,null,null,null,null,null,null,null,null,null,null,null,null,null,null,null,null,null,null,null,null,null,null,null,null,null,null,null,null,null,null,null,null,null,null,null,null,null,null,null,null,null,null,null,null,null,null,null,null,null,null,null,null,null,0,"P","","ZZ","E7000","GROSPROD","_Z","COMBOILSH","_T","_Z","_Z","_Z","ENERGY","_Z","GWH"]
["GWh","Electricity","Crude Oil","6000",null,"GELEPROD","CRUDEOIL",{"$f":"PrefilledData!B29","v":0},0,"P","",null,null,null,null,null,null,null,null,null,null,null,null,null,null,null,null,null,null,null,null,null,null,null,null,null,null,null,null,null,null,null,null,null,null,null,null,null,null,null,null,null,null,null,null,null,null,null,null,null,null,null,null,null,null,null,null,null,null,null,null,null,null,null,null,null,null,null,null,null,null,null,null,null,null,null,null,null,null,null,null,null,null,null,null,null,null,null,null,null,null,null,null,null,null,null,null,null,null,null,null,null,null,null,null,null,null,null,null,0,"P","","ZZ","E7000","GROSPROD","_Z","COMBCRUDE","_T","_Z","_Z","_Z","ENERGY","_Z","GWH"]
["GWh","Electricity","Natural Gas Liquids","6000",null,"GELEPROD","NGL",{"$f":"PrefilledData!B30","v":0},0,"P","",null,null,null,null,null,null,null,null,null,null,null,null,null,null,null,null,null,null,null,null,null,null,null,null,null,null,null,null,null,null,null,null,null,null,null,null,null,null,null,null,null,null,null,null,null,null,null,null,null,null,null,null,null,null,null,null,null,null,null,null,null,null,null,null,null,null,null,null,null,null,null,null,null,null,null,null,null,null,null,null,null,null,null,null,null,null,null,null,null,null,null,null,null,null,null,null,null,null,null,null,null,null,null,null,null,null,null,null,0,"P","","ZZ","E7000","GROSPROD","_Z","COMBNGL","_T","_Z","_Z","_Z","ENERGY","_Z","GWH"]
["GWh","Electricity","Refinery Gas","6000",null,"GELEPROD","REFINGAS",{"$f":"PrefilledData!B34","v":0},0,"P","",null,null,null,null,null,null,null,null,null,null,null,null,null,null,null,null,null,null,null,null,null,null,null,null,null,null,null,null,null,null,null,null,null,null,null,null,null,null,null,null,null,null,null,null,null,null,null,null,null,null,null,null,null,null,null,null,null,null,null,null,null,null,null,null,null,null,null,null,null,null,null,null,null,null,null,null,null,null,null,null,null,null,null,null,null,null,null,null,null,null,null,null,null,null,null,null,null,null,null,null,null,null,null,null,null,null,null,null,0,"P","","ZZ","E7000","GROSPROD","_Z","COMBREFGAS","_T","_Z","_Z","_Z","ENERGY","_Z","GWH"]
["GWh","Electricity","Liquefied Petroleum Gases","6000",null,"GELEPROD","LPG",{"$f":"PrefilledData!B36","v":0},0,"P","",null,null,null,null,null,null,null,null,null,null,null,null,null,null,null,null,null,null,null,null,null,null,null,null,null,null,null,null,null,null,null,null,null,null,null,null,null,null,null,null,null,null,null,null,null,null,null,null,null,null,null,null,null,null,null,null,null,null,null,null,null,null,null,null,null,null,null,null,null,null,null,null,null,null,null,null,null,null,null,null,null,null,null,null,null,null,null,null,null,null,null,null,null,null,null,null,null,null,null,null,null,null,null,null,null,null,null,null,0,"P","","ZZ","E7000","GROSPROD","_Z","COMBLPG","_T","_Z","_Z","_Z","ENERGY","_Z","GWH"]
["GWh","Electricity","Naphtha","6000",null,"GELEPROD","NAPHTHA",{"$f":"PrefilledData!B37","v":0},0,"P","",null,null,null,null,null,null,null,null,null,null,null,null,null,null,null,null,null,null,null,null,null,null,null,null,null,null,null,null,null,null,null,null,null,null,null,null,null,null,null,null,null,null,null,null,null,null,null,null,null,null,null,null,null,null,null,null,null,null,null,null,null,null,null,null,null,null,null,null,null,null,null,null,null,null,null,null,null,null,null,null,null,null,null,null,null,null,null,null,null,null,null,null,null,null,null,null,null,null,null,null,null,null,null,null,null,null,null,null,0,"P","","ZZ","E7000","GROSPROD","_Z","COMBNAPHTA","_T","_Z","_Z","_Z","ENERGY","_Z","GWH"]
["GWh","Electricity","Kerosene Type Jet Fuel","6000",null,"GELEPROD","JETKERO",{"$f":"PrefilledData!B41","v":0},0,"P","",null,null,null,null,null,null,null,null,null,null,null,null,null,null,null,null,null,null,null,null,null,null,null,null,null,null,null,null,null,null,null,null,null,null,null,null,null,null,null,null,null,null,null,null,null,null,null,null,null,null,null,null,null,null,null,null,null,null,null,null,null,null,null,null,null,null,null,null,null,null,null,null,null,null,null,null,null,null,null,null,null,null,null,null,null,null,null,null,null,null,null,null,null,null,null,null,null,null,null,null,null,null,null,null,null,null,null,null,0,"P","","ZZ","E7000","GROSPROD","_Z","COMBKEROJET","_T","_Z","_Z","_Z","ENERGY","_Z","GWH"]
["GWh","Electricity","Other Kerosene","6000",null,"GELEPROD","OTHKERO",{"$f":"PrefilledData!B42","v":0},0,"P","",null,null,null,null,null,null,null,null,null,null,null,null,null,null,null,null,null,null,null,null,null,null,null,null,null,null,null,null,null,null,null,null,null,null,null,null,null,null,null,null,null,null,null,null,null,null,null,null,null,null,null,null,null,null,null,null,null,null,null,null,null,null,null,null,null,null,null,null,null,null,null,null,null,null,null,null,null,null,null,null,null,null,null,null,null,null,null,null,null,null,null,null,null,null,null,null,null,null,null,null,null,null,null,null,null,null,null,null,0,"P","","ZZ","E7000","GROSPROD","_Z","COMBKEROOTH","_T","_Z","_Z","_Z","ENERGY","_Z","GWH"]
["GWh","Electricity","Gas/Diesel Oil","6000",null,"GELEPROD","GASDIES",{"$f":"PrefilledData!B43","v":0},0,"P","",null,null,null,null,null,null,null,null,null,null,null,null,null,null,null,null,null,null,null,null,null,null,null,null,null,null,null,null,null,null,null,null,null,null,null,null,null,null,null,null,null,null,null,null,null,null,null,null,null,null,null,null,null,null,null,null,null,null,null,null,null,null,null,null,null,null,null,null,null,null,null,null,null,null,null,null,null,null,null,null,null,null,null,null,null,null,null,null,null,null,null,null,null,null,null,null,null,null,null,null,null,null,null,null,null,null,null,null,0,"P","","ZZ","E7000","GROSPROD","_Z","COMBGASDIES","_T","_Z","_Z","_Z","ENERGY","_Z","GWH"]
["GWh","Electricity","Residual Fuel Oil","6000",null,"GELEPROD","RESFUEL",{"$f":"PrefilledData!B44","v":0},0,"P","",null,null,null,null,null,null,null,null,null,null,null,null,null,null,null,null,null,null,null,null,null,null,null,null,null,null,null,null,null,null,null,null,null,null,null,null,null,null,null,null,null,null,null,null,null,null,null,null,null,null,null,null,null,null,null,null,null,null,null,null,null,null,null,null,null,null,null,null,null,null,null,null,null,null,null,null,null,null,null,null,null,null,null,null,null,null,null,null,null,null,null,null,null,null,null,null,null,null,null,null,null,null,null,null,null,null,null,null,0,"P","","ZZ","E7000","GROSPROD","_Z","COMBFUELOIL","_T","_Z","_Z","_Z","ENERGY","_Z","GWH"]
["GWh","Electricity","Bitumen","6000",null,"GELEPROD","BITUMEN",{"$f":"PrefilledData!B49","v":0},0,"P","",null,null,null,null,null,null,null,null,null,null,null,null,null,null,null,null,null,null,null,null,null,null,null,null,null,null,null,null,null,null,null,null,null,null,null,null,null,null,null,null,null,null,null,null,null,null,null,null,null,null,null,null,null,null,null,null,null,null,null,null,null,null,null,null,null,null,null,null,null,null,null,null,null,null,null,null,null,null,null,null,null,null,null,null,null,null,null,null,null,null,null,null,null,null,null,null,null,null,null,null,null,null,null,null,null,null,null,null,0,"P","","ZZ","E7000","GROSPROD","_Z","COMBBITUMEN","_T","_Z","_Z","_Z","ENERGY","_Z","GWH"]
["GWh","Electricity","Petroleum Coke","6000",null,"GELEPROD","PETCOKE",{"$f":"PrefilledData!B48","v":0},0,"P","",null,null,null,null,null,null,null,null,null,null,null,null,null,null,null,null,null,null,null,null,null,null,null,null,null,null,null,null,null,null,null,null,null,null,null,null,null,null,null,null,null,null,null,null,null,null,null,null,null,null,null,null,null,null,null,null,null,null,null,null,null,null,null,null,null,null,null,null,null,null,null,null,null,null,null,null,null,null,null,null,null,null,null,null,null,null,null,null,null,null,null,null,null,null,null,null,null,null,null,null,null,null,null,null,null,null,null,null,0,"P","","ZZ","E7000","GROSPROD","_Z","COMBPETCOKE","_T","_Z","_Z","_Z","ENERGY","_Z","GWH"]
["GWh","Electricity","Other Oil Products","6000",null,"GELEPROD","OPRODS",{"$f":"PrefilledData!B50","v":0},0,"P","",null,null,null,null,null,null,null,null,null,null,null,null,null,null,null,null,null,null,null,null,null,null,null,null,null,null,null,null,null,null,null,null,null,null,null,null,null,null,null,null,null,null,null,null,null,null,null,null,null,null,null,null,null,null,null,null,null,null,null,null,null,null,null,null,null,null,null,null,null,null,null,null,null,null,null,null,null,null,null,null,null,null,null,null,null,null,null,null,null,null,null,null,null,null,null,null,null,null,null,null,null,null,null,null,null,null,null,null,0,"P","","ZZ","E7000","GROSPROD","_Z","COMBOILOTH","_T","_Z","_Z","_Z","ENERGY","_Z","GWH"]
["GWh","Electricity","Natural Gas","6000",null,"GELEPROD","NATGAS",{"$f":"PrefilledData!B27","v":0},0,"P","",null,null,null,null,null,null,null,null,null,null,null,null,null,null,null,null,null,null,null,null,null,null,null,null,null,null,null,null,null,null,null,null,null,null,null,null,null,null,null,null,null,null,null,null,null,null,null,null,null,null,null,null,null,null,null,null,null,null,null,null,null,null,null,null,null,null,null,null,null,null,null,null,null,null,null,null,null,null,null,null,null,null,null,null,null,null,null,null,null,null,null,null,null,null,null,null,null,null,null,null,null,null,null,null,null,null,null,null,0,"P","","ZZ","E7000","GROSPROD","_Z","COMBGAS","_T","_Z","_Z","_Z","ENERGY","_Z","GWH"]
["GWh","Electricity","Heat from chemical sources","6000",null,"GELEPROD","CHEMHEAT",{"$f":"PrefilledData!E116+PrefilledData!F116","v":0},0,"P","",null,null,null,null,null,null,null,null,null,null,null,null,null,null,null,null,null,null,null,null,null,null,null,null,null,null,null,null,null,null,null,null,null,null,null,null,null,null,null,null,null,null,null,null,null,null,null,null,null,null,null,null,null,null,null,null,null,null,null,null,null,null,null,null,null,null,null,null,null,null,null,null,null,null,null,null,null,null,null,null,null,null,null,null,null,null,null,null,null,null,null,null,null,null,null,null,null,null,null,null,null,null,null,null,null,null,null,null,0,"P","","ZZ","E7000","GROSPROD","_Z","CHEMHEAT","_T","_Z","_Z","_Z","ENERGY","_Z","GWH"]
["GWh","Electricity","Other sources","6000",null,"GELEPROD","OTHER",{"$f":"PrefilledData!C116+PrefilledData!D116","v":0},0,"P","",null,null,null,null,null,null,null,null,null,null,null,null,null,null,null,null,null,null,null,null,null,null,null,null,null,null,null,null,null,null,null,null,null,null,null,null,null,null,null,null,null,null,null,null,null,null,null,null,null,null,null,null,null,null,null,null,null,null,null,null,null,null,null,null,null,null,null,null,null,null,null,null,null,null,null,null,null,null,null,null,null,null,null,null,null,null,null,null,null,null,null,null,null,null,null,null,null,null,null,null,null,null,null,null,null,null,null,null,0,"P","","ZZ","E7000","GROSPROD","_Z","OTHERSO","_T","_Z","_Z","_Z","ENERGY","_Z","GWH"]
["GWh","Electricity","TOTAL GROSS PRODUCTION",null,null,null,null,{"$f":"SUM(H2:H3,H8:H9,H12:H13,H16:H23,H25:H56)","v":0},{"$f":"SUM(I2:I3,I8:I9,I12:I13,I16:I23,I25:I56)","v":0},"P","",null,null,null,null,null,null,null,null,null,null,null,null,null,null,null,null,null,null,null,null,null,null,null,null,null,null,null,null,null,null,null,null,null,null,null,null,null,null,null,null,null,null,null,null,null,null,null,null,null,null,null,null,null,null,null,null,null,null,null,null,null,null,null,null,null,null,null,null,null,null,null,null,null,null,null,null,null,null,null,null,null,null,null,null,null,null,null,null,null,null,null,null,null,null,null,null,null,null,null,null,null,null,null,null,null,null,null,null,0,"P","","ZZ","E7000","GROSPROD","_Z","_Z","_Z","_Z","_Z","_Z","ENERGY","_Z","GWH"]
["GWh","Electricity","Own use","6000","B_101301","OWNUSE","ELECTR",{"$f":"PrefilledData!B95","v":0},0,"P","",null,null,null,null,null,null,null,null,null,null,null,null,null,null,null,null,null,null,null,null,null,null,null,null,null,null,null,null,null,null,null,null,null,null,null,null,null,null,null,null,null,null,null,null,null,null,null,null,null,null,null,null,null,null,null,null,null,null,null,null,null,null,null,null,null,null,null,null,null,null,null,null,null,null,null,null,null,null,null,null,null,null,null,null,null,null,null,null,null,null,null,null,null,null,null,null,null,null,null,null,null,null,null,null,null,null,null,null,0,"P","","ZZ","E7000","ENERGUSE","POWERPL","_Z","_Z","_Z","_Z","_Z","ENERGY","_Z","GWH"]
["GWh","Electricity","TOTAL NET PRODUCTION","6000","17_107100",null,null,{"$f":"H57-H58","v":0},{"$f":"I57-I58","v":0},"P","",null,null,null,null,null,null,null,null,null,null,null,null,null,null,null,null,null,null,null,null,null,null,null,null,null,null,null,null,null,null,null,null,null,null,null,null,null,null,null,null,null,null,null,null,null,null,null,null,null,null,null,null,null,null,null,null,null,null,null,null,null,null,null,null,null,null,null,null,null,null,null,null,null,null,null,null,null,null,null,null,null,null,null,null,null,null,null,null,null,null,null,null,null,null,null,null,null,null,null,null,null,null,null,null,null,null,null,null,0,"P","","ZZ","E7000","NETPROD","_Z","_Z","_Z","_Z","_Z","_Z","ENERGY","_Z","GWH"]
["GWh","Electricity","Imports","6000","B_100300","TOTIMPSB","ELECTR",{"$f":"PrefilledData!B85","v":0},0,"P","",null,null,null,null,null,null,null,null,null,null,null,null,null,null,null,null,null,null,null,null,null,null,null,null,null,null,null,null,null,null,null,null,null,null,null,null,null,null,null,null,null,null,null,null,null,null,null,null,null,null,null,null,null,null,null,null,null,null,null,null,null,null,null,null,null,null,null,null,null,null,null,null,null,null,null,null,null,null,null,null,null,null,null,null,null,null,null,null,null,null,null,null,null,null,null,null,null,null,null,null,null,null,null,null,null,null,null,null,0,"P","","ZZ","E7000","IMPORTS","TOTIMPSB","_Z","_Z","_Z","_Z","_Z","ENERGY","_Z","GWH"]
["GWh","Electricity","Exports","6000","B_100500","TOTEXPSB","ELECTR",{"$f":"PrefilledData!B86","v":0},0,"P","",null,null,null,null,null,null,null,null,null,null,null,null,null,null,null,null,null,null,null,null,null,null,null,null,null,null,null,null,null,null,null,null,null,null,null,null,null,null,null,null,null,null,null,null,null,null,null,null,null,null,null,null,null,null,null,null,null,null,null,null,null,null,null,null,null,null,null,null,null,null,null,null,null,null,null,null,null,null,null,null,null,null,null,null,null,null,null,null,null,null,null,null,null,null,null,null,null,null,null,null,null,null,null,null,null,null,null,null,0,"P","","ZZ","E7000","EXPORTS","TOTEXPSB","_Z","_Z","_Z","_Z","_Z","ENERGY","_Z","GWH"]
["GWh","Electricity","Used for Heat Pumps","6000","B_101322","EHEAT","ELECTR",{"$f":"PrefilledData!B87","v":0},0,"P","",null,null,null,null,null,null,null,null,null,null,null,null,null,null,null,null,null,null,null,null,null,null,null,null,null,null,null,null,null,null,null,null,null,null,null,null,null,null,null,null,null,null,null,null,null,null,null,null,null,null,null,null,null,null,null,null,null,null,null,null,null,null,null,null,null,null,null,null,null,null,null,null,null,null,null,null,null,null,null,null,null,null,null,null,null,null,null,null,null,null,null,null,null,null,null,null,null,null,null,null,null,null,null,null,null,null,null,null,0,"P","","ZZ","E7000","ENERGUSE","HEATPUMP","_Z","_Z","_Z","_Z","_Z","ENERGY","_Z","GWH"]
["GWh","Electricity","Used for Electric Boilers","6000","B_101323","EBOILER","ELECTR",{"$f":"PrefilledData!B88","v":0},0,"P","",null,null,null,null,null,null,null,null,null,null,null,null,null,null,null,null,null,null,null,null,null,null,null,null,null,null,null,null,null,null,null,null,null,null,null,null,null,null,null,null,null,null,null,null,null,null,null,null,null,null,null,null,null,null,null,null,null,null,null,null,null,null,null,null,null,null,null,null,null,null,null,null,null,null,null,null,null,null,null,null,null,null,null,null,null,null,null,null,null,null,null,null,null,null,null,null,null,null,null,null,null,null,null,null,null,null,null,null,0,"P","","ZZ","E7000","ENERGUSE","BOILER","_Z","_Z","_Z","_Z","_Z","ENERGY","_Z","GWH"]
["GWh","Electricity","Used for pumped storage: Pure pumping plants",null,null,null,null,{"$f":"PrefilledData!B106","v":0},0,"P",{"$f":"IF(ISERROR(I64/H64),\"\",(I64/H64)-1)","v":""},null,null,null,null,null,null,null,null,null,null,null,null,null,null,null,null,null,null,null,null,null,null,null,null,null,null,null,null,null,null,null,null,null,null,null,null,null,null,null,null,null,null,null,null,null,null,null,null,null,null,null,null,null,null,null,null,null,null,null,null,null,null,null,null,null,null,null,null,null,null,null,null,null,null,null,null,null,null,null,null,null,null,null,null,null,null,null,null,null,null,null,null,null,null,null,null,null,null,null,null,null,null,null,null,null,null,null,null,0,"P","","ZZ","E7000","ENERGUSE","PUMPST","HYDPPS","_Z","_Z","_Z","_Z","ENERGY","_Z","GWH"]
["GWh","Electricity","Used for pumped storage: Mixed plants","6000","17_107302","EPUMPST","ELECTR",{"$f":"PrefilledData!B107","v":0},0,"P","",null,null,null,null,null,null,null,null,null,null,null,null,null,null,null,null,null,null,null,null,null,null,null,null,null,null,null,null,null,null,null,null,null,null,null,null,null,null,null,null,null,null,null,null,null,null,null,null,null,null,null,null,null,null,null,null,null,null,null,null,null,null,null,null,null,null,null,null,null,null,null,null,null,null,null,null,null,null,null,null,null,null,null,null,null,null,null,null,null,null,null,null,null,null,null,null,null,null,null,null,null,null,null,null,null,null,null,null,0,"P","","ZZ","E7000","ENERGUSE","PUMPST","HYDMIX","_Z","_Z","_Z","_Z","ENERGY","_Z","GWH"]
["GWh","Electricity","Total electricity supply",null,null,null,null,{"$f":"H59+H60-H61-H62-H63-H64-H65","v":0},{"$f":"I59+I60-I61-I62-I63-I64-I65","v":0},"P","",null,null,null,null,null,null,null,null,null,null,null,null,null,null,null,null,null,null,null,null,null,null,null,null,null,null,null,null,null,null,null,null,null,null,null,null,null,null,null,null,null,null,null,null,null,null,null,null,null,null,null,null,null,null,null,null,null,null,null,null,null,null,null,null,null,null,null,null,null,null,null,null,null,null,null,null,null,null,null,null,null,null,null,null,null,null,null,null,null,null,null,null,null,null,null,null,null,null,null,null,null,null,null,null,null,null,null,null,0,"P","",{"$f":"$S$1","v":"ZZ"},"E7000","SUPPLY","INLDEMC","_Z","_Z","_Z","_Z","_Z","ENERGY","_Z","GWH"]
["GWh","Electricity","Distribution losses","6000","B_101400","DISTLOSS","ELECTR",{"$f":"PrefilledData!B96","v":0},0,"P","",null,null,null,null,null,null,null,null,null,null,null,null,null,null,null,null,null,null,null,null,null,null,null,null,null,null,null,null,null,null,null,null,null,null,null,null,null,null,null,null,null,null,null,null,null,null,null,null,null,null,null,null,null,null,null,null,null,null,null,null,null,null,null,null,null,null,null,null,null,null,null,null,null,null,null,null,null,null,null,null,null,null,null,null,null,null,null,null,null,null,null,null,null,null,null,null,null,null,null,null,null,null,null,null,null,null,null,null,{"$f":"IF(J67=\"O\",\"NaN\",ROUND(I67,3))","v":0},{"$f":"IF(J67=\"\",\"A\",J67)","v":"P"},{"$f":"LEFT(TRIM(L67),255)","v":""},"ZZ","E7000","LOSSES","DISTLOSS","_Z","_Z","_Z","_Z","_Z","ENERGY","_Z","GWH"]
["GWh","Electricity","Inland consumption (calculated)",null,null,null,null,{"$f":"H66-H67","v":0},{"$f":"I66-I67","v":0},"P","",null,null,null,null,null,null,null,null,null,null,null,null,null,null,null,null,null,null,null,null,null,null,null,null,null,null,null,null,null,null,null,null,null,null,null,null,null,null,null,null,null,null,null,null,null,null,null,null,null,null,null,null,null,null,null,null,null,null,null,null,null,null,null,null,null,null,null,null,null,null,null,null,null,null,null,null,null,null,null,null,null,null,null,null,null,null,null,null,null,null,null,null,null,null,null,null,null,null,null,null,null,null,null,null,null,null,null,null,0,"P","","ZZ","E7000","SUPPLY","FINCONSC","_Z","_Z","_Z","_Z","_Z","ENERGY","_Z","GWH"]
["GWh","Electricity","Statistical differences",null,null,null,null,{"$f":"H68-H70","v":0},{"$f":"I68-I70","v":0},"P","",null,null,null,null,null,null,null,null,null,null,null,null,null,null,null,null,null,null,null,null,null,null,null,null,null,null,null,null,null,null,null,null,null,null,null,null,null,null,null,null,null,null,null,null,null,null,null,null,null,null,null,null,null,null,null,null,null,null,null,null,null,null,null,null,null,null,null,null,null,null,null,null,null,null,null,null,null,null,null,null,null,null,null,null,null,null,null,null,null,null,null,null,null,null,null,null,null,null,null,null,null,null,null,null,null,null,null,null,0,"P","","ZZ","E7000","STATDIFF","_Z","_Z","_Z","_Z","_Z","_Z","ENERGY","_Z","GWH"]
["GWh","Electricity","Inland consumption (observed)",null,null,null,null,{"$f":"H71+H72+H73+H74","v":0},{"$f":"I71+I72+I73+I74","v":0},"P","",null,null,null,null,null,null,null,null,null,null,null,null,null,null,null,null,null,null,null,null,null,null,null,null,null,null,null,null,null,null,null,null,null,null,null,null,null,null,null,null,null,null,null,null,null,null,null,null,null,null,null,null,null,null,null,null,null,null,null,null,null,null,null,null,null,null,null,null,null,null,null,null,null,null,null,null,null,null,null,null,null,null,null,null,null,null,null,null,null,null,null,null,null,null,null,null,null,null,null,null,null,null,null,null,null,null,null,null,0,"P","","ZZ","E7000","CONSUMPT","FINCONSO","_Z","_Z","_Z","_Z","_Z","ENERGY","_Z","GWH"]
["GWh","Electricity","Energy sector (excluding \"Own use\")","6000","DB_101300","TOTENGY","ELECTR",{"$f":"PrefilledData!B94-PrefilledData!B95","v":0},0,"P","",null,null,null,null,null,null,null,null,null,null,null,null,null,null,null,null,null,null,null,null,null,null,null,null,null,null,null,null,null,null,null,null,null,null,null,null,null,null,null,null,null,null,null,null,null,null,null,null,null,null,null,null,null,null,null,null,null,null,null,null,null,null,null,null,null,null,null,null,null,null,null,null,null,null,null,null,null,null,null,null,null,null,null,null,null,null,null,null,null,null,null,null,null,null,null,null,null,null,null,null,null,null,null,null,null,null,null,null,0,"P","","ZZ","E7000","ENERGUSE","ENERSECT","_Z","_Z","_Z","_Z","_Z","ENERGY","_Z","GWH"]
["GWh","Electricity","Industry sector","6000","DB_101800","TOTIND","ELECTR",{"$f":"PrefilledData!B97","v":0},0,"P","",null,null,null,null,null,null,null,null,null,null,null,null,null,null,null,null,null,null,null,null,null,null,null,null,null,null,null,null,null,null,null,null,null,null,null,null,null,null,null,null,null,null,null,null,null,null,null,null,null,null,null,null,null,null,null,null,null,null,null,null,null,null,null,null,null,null,null,null,null,null,null,null,null,null,null,null,null,null,null,null,null,null,null,null,null,null,null,null,null,null,null,null,null,null,null,null,null,null,null,null,null,null,null,null,null,null,null,null,0,"P","","ZZ","E7000","ENERGUSE","INDUSTRY","_Z","_Z","_Z","_Z","_Z","ENERGY","_Z","GWH"]
["GWh","Electricity","Transport sector","6000","B_101900","TOTTRANS","ELECTR",{"$f":"PrefilledData!B98","v":0},0,"P","",null,null,null,null,null,null,null,null,null,null,null,null,null,null,null,null,null,null,null,null,null,null,null,null,null,null,null,null,null,null,null,null,null,null,null,null,null,null,null,null,null,null,null,null,null,null,null,null,null,null,null,null,null,null,null,null,null,null,null,null,null,null,null,null,null,null,null,null,null,null,null,null,null,null,null,null,null,null,null,null,null,null,null,null,null,null,null,null,null,null,null,null,null,null,null,null,null,null,null,null,null,null,null,null,null,null,null,null,0,"P","","ZZ","E7000","ENERGUSE","TRANSPOR","_Z","_Z","_Z","_Z","_Z","ENERGY","_Z","GWH"]
["GWh","Electricity","Other sectors","6000","B_102000","TOTOTHER","ELECTR",{"$f":"PrefilledData!B99","v":0},0,"P","",null,null,null,null,null,null,null,null,null,null,null,null,null,null,null,null,null,null,null,null,null,null,null,null,null,null,null,null,null,null,null,null,null,null,null,null,null,null,null,null,null,null,null,null,null,null,null,null,null,null,null,null,null,null,null,null,null,null,null,null,null,null,null,null,null,null,null,null,null,null,null,null,null,null,null,null,null,null,null,null,null,null,null,null,null,null,null,null,null,null,null,null,null,null,null,null,null,null,null,null,null,null,null,null,null,null,null,null,0,"P","","ZZ","E7000","ENERGUSE","OTHSECT","_Z","_Z","_Z","_Z","_Z","ENERGY","_Z","GWH"]

{"sheet":"HEAT","index":4,"n_rows":62,"n_cols":134,"rows_kept":62,"cut":false,"hidden":true,"merged":[]}
[null,null,"Heat: TJ\nGROSS PRODUCTION","product_id_e","flow_id_e","product_id_i","flow_id_i",{"$f":"ELECTRICITY!Q1-1&\" prefilled from annual data\"","v":"2019 prefilled from annual data"},{"$f":"ELECTRICITY!Q1","v":2020},"STATUS","Growth rates\nto previous\nyear","Observation Comment",null,null,null,null,null,null,null,null,null,null,null,null,null,null,null,null,null,null,null,null,null,null,null,null,null,null,null,null,null,null,null,null,null,null,null,null,null,null,null,null,null,null,null,null,null,null,null,null,null,null,null,null,null,null,null,null,null,null,null,null,null,null,null,null,null,null,null,null,null,null,null,null,null,null,null,null,null,null,null,null,null,null,null,null,null,null,null,null,null,null,null,null,null,null,null,null,null,null,null,null,null,null,null,null,null,null,null,"VALUE","OBS_STATUS","OBS_COMMENT","REF_AREA","ENERGY_PRODUCT","MAIN_FLOW","FLOW_BREAKDOWN","PLANT_TECH","PLANT_TYPE","STOCKS","INFRASTRUCTURE_IND","VIS_A_VIS_AREA","MEASURE_VALUE_TYPE","FACILITY_ID","UNIT_MEASURE"]
["TJ","Heat","Nuclear","5200",null,"GHEATPRO","NUCLEAR",{"$f":"PrefilledData!E73","v":0},0,"P",{"$f":"IF(ISERROR(I2/H2),\"\",(I2/H2)-1)","v":""},null,null,null,null,null,null,null,null,null,null,null,null,null,null,null,null,null,null,null,null,null,null,null,null,null,null,null,null,null,null,null,null,null,null,null,null,null,null,null,null,null,null,null,null,null,null,null,null,null,null,null,null,null,null,null,null,null,null,null,null,null,null,null,null,null,null,null,null,null,null,null,null,null,null,null,null,null,null,null,null,null,null,null,null,null,null,null,null,null,null,null,null,null,null,null,null,null,null,null,null,null,null,null,null,null,null,null,null,{"$f":"IF(J2=\"O\",\"NaN\",ROUND(I2,3))","v":0},{"$f":"IF(J2=\"\",\"A\",J2)","v":"P"},{"$f":"LEFT(TRIM(L2),255)","v":""},{"$f":"ELECTRICITY!$S$1","v":"ZZ"},"H8000","GROSPROD","_Z","NUCLEAR","_T","_Z","_Z","_Z","ENERGY","_Z","TJ"]
["TJ","Heat","Geothermal","5200",null,"GHEATPRO","GEOTHERM",{"$f":"PrefilledData!E53","v":0},0,"P","",null,null,null,null,null,null,null,null,null,null,null,null,null,null,null,null,null,null,null,null,null,null,null,null,null,null,null,null,null,null,null,null,null,null,null,null,null,null,null,null,null,null,null,null,null,null,null,null,null,null,null,null,null,null,null,null,null,null,null,null,null,null,null,null,null,null,null,null,null,null,null,null,null,null,null,null,null,null,null,null,null,null,null,null,null,null,null,null,null,null,null,null,null,null,null,null,null,null,null,null,null,null,null,null,null,null,null,null,{"$f":"IF(J3=\"O\",\"NaN\",ROUND(I3,3))","v":0},{"$f":"IF(J3=\"\",\"A\",J3)","v":"P"},{"$f":"LEFT(TRIM(L3),255)","v":""},{"$f":"ELECTRICITY!$S$1","v":"ZZ"},"H8000","GROSPROD","_Z","GEOTHERM","_T","_Z","_Z","_Z","ENERGY","_Z","TJ"]
["TJ","Heat","Solar thermal","5200",null,"GHEATPRO","SOLARTH",{"$f":"PrefilledData!E55","v":0},0,"P","",null,null,null,null,null,null,null,null,null,null,null,null,null,null,null,null,null,null,null,null,null,null,null,null,null,null,null,null,null,null,null,null,null,null,null,null,null,null,null,null,null,null,null,null,null,null,null,null,null,null,null,null,null,null,null,null,null,null,null,null,null,null,null,null,null,null,null,null,null,null,null,null,null,null,null,null,null,null,null,null,null,null,null,null,null,null,null,null,null,null,null,null,null,null,null,null,null,null,null,null,null,null,null,null,null,null,null,null,0,"P","",{"$f":"ELECTRICITY!$S$1","v":"ZZ"},"H8000","GROSPROD","_Z","SOLARTH","_T","_Z","_Z","_Z","ENERGY","_Z","TJ"]
["TJ","Heat","Industrial Waste (Non-Renew.)","5200",null,"GHEATPRO","INDWASTE",{"$f":"PrefilledData!E69","v":0},0,"P","",null,null,null,null,null,null,null,null,null,null,null,null,null,null,null,null,null,null,null,null,null,null,null,null,null,null,null,null,null,null,null,null,null,null,null,null,null,null,null,null,null,null,null,null,null,null,null,null,null,null,null,null,null,null,null,null,null,null,null,null,null,null,null,null,null,null,null,null,null,null,null,null,null,null,null,null,null,null,null,null,null,null,null,null,null,null,null,null,null,null,null,null,null,null,null,null,null,null,null,null,null,null,null,null,null,null,null,null,0,"P","",{"$f":"ELECTRICITY!$S$1","v":"ZZ"},"H8000","GROSPROD","_Z","COMBINWA","_T","_Z","_Z","_Z","ENERGY","_Z","TJ"]
["TJ","Heat","Municipal Waste (Renew.)","5200",null,"GHEATPRO","MUNWASTER",{"$f":"PrefilledData!E70","v":0},0,"P","",null,null,null,null,null,null,null,null,null,null,null,null,null,null,null,null,null,null,null,null,null,null,null,null,null,null,null,null,null,null,null,null,null,null,null,null,null,null,null,null,null,null,null,null,null,null,null,null,null,null,null,null,null,null,null,null,null,null,null,null,null,null,null,null,null,null,null,null,null,null,null,null,null,null,null,null,null,null,null,null,null,null,null,null,null,null,null,null,null,null,null,null,null,null,null,null,null,null,null,null,null,null,null,null,null,null,null,null,0,"P","",{"$f":"ELECTRICITY!$S$1","v":"ZZ"},"H8000","GROSPROD","_Z","COMBMURW","_T","_Z","_Z","_Z","ENERGY","_Z","TJ"]
["TJ","Heat","Municipal Waste (Non-Renew.)","5200",null,"GHEATPRO","MUNWASTEN",{"$f":"PrefilledData!E71","v":0},0,"P","",null,null,null,null,null,null,null,null,null,null,null,null,null,null,null,null,null,null,null,null,null,null,null,null,null,null,null,null,null,null,null,null,null,null,null,null,null,null,null,null,null,null,null,null,null,null,null,null,null,null,null,null,null,null,null,null,null,null,null,null,null,null,null,null,null,null,null,null,null,null,null,null,null,null,null,null,null,null,null,null,null,null,null,null,null,null,null,null,null,null,null,null,null,null,null,null,null,null,null,null,null,null,null,null,null,null,null,null,0,"P","",{"$f":"ELECTRICITY!$S$1","v":"ZZ"},"H8000","GROSPROD","_Z","COMBMUNR","_T","_Z","_Z","_Z","ENERGY","_Z","TJ"]
["TJ","Heat","Solid Biofuels","5200",null,"GHEATPRO","SBIOFUELS",{"$f":"PrefilledData!E59","v":0},0,"P","",null,null,null,null,null,null,null,null,null,null,null,null,null,null,null,null,null,null,null,null,null,null,null,null,null,null,null,null,null,null,null,null,null,null,null,null,null,null,null,null,null,null,null,null,null,null,null,null,null,null,null,null,null,null,null,null,null,null,null,null,null,null,null,null,null,null,null,null,null,null,null,null,null,null,null,null,null,null,null,null,null,null,null,null,null,null,null,null,null,null,null,null,null,null,null,null,null,null,null,null,null,null,null,null,null,null,null,null,0,"P","",{"$f":"ELECTRICITY!$S$1","v":"ZZ"},"H8000","GROSPROD","_Z","COMBSOBI","_T","_Z","_Z","_Z","ENERGY","_Z","TJ"]
["TJ","Heat","Biogases","5200",null,"GHEATPRO","BIOGASES",{"$f":"PrefilledData!E68","v":0},0,"P","",null,null,null,null,null,null,null,null,null,null,null,null,null,null,null,null,null,null,null,null,null,null,null,null,null,null,null,null,null,null,null,null,null,null,null,null,null,null,null,null,null,null,null,null,null,null,null,null,null,null,null,null,null,null,null,null,null,null,null,null,null,null,null,null,null,null,null,null,null,null,null,null,null,null,null,null,null,null,null,null,null,null,null,null,null,null,null,null,null,null,null,null,null,null,null,null,null,null,null,null,null,null,null,null,null,null,null,null,0,"P","",{"$f":"ELECTRICITY!$S$1","v":"ZZ"},"H8000","GROSPROD","_Z","COMBBIGA","_T","_Z","_Z","_Z","ENERGY","_Z","TJ"]
["TJ","Heat","Biodiesel","5200",null,"GHEATPRO","BIODIESEL",{"$f":"PrefilledData!E63","v":0},0,"P","",null,null,null,null,null,null,null,null,null,null,null,null,null,null,null,null,null,null,null,null,null,null,null,null,null,null,null,null,null,null,null,null,null,null,null,null,null,null,null,null,null,null,null,null,null,null,null,null,null,null,null,null,null,null,null,null,null,null,null,null,null,null,null,null,null,null,null,null,null,null,null,null,null,null,null,null,null,null,null,null,null,null,null,null,null,null,null,null,null,null,null,null,null,null,null,null,null,null,null,null,null,null,null,null,null,null,null,null,0,"P","",{"$f":"ELECTRICITY!$S$1","v":"ZZ"},"H8000","GROSPROD","_Z","COMBBIDI","_T","_Z","_Z","_Z","ENERGY","_Z","TJ"]
["TJ","Heat","Biogasolines",null,null,null,null,{"$f":"PrefilledData!E61","v":0},0,"P",null,null,null,null,null,null,null,null,null,null,null,null,null,null,null,null,null,null,null,null,null,null,null,null,null,null,null,null,null,null,null,null,null,null,null,null,null,null,null,null,null,null,null,null,null,null,null,null,null,null,null,null,null,null,null,null,null,null,null,null,null,null,null,null,null,null,null,null,null,null,null,null,null,null,null,null,null,null,null,null,null,null,null,null,null,null,null,null,null,null,null,null,null,null,null,null,null,null,null,null,null,null,null,null,null,null,null,null,null,0,"P","",{"$f":"ELECTRICITY!$S$1","v":"ZZ"},"H8000","GROSPROD","_Z","COMBBIGO","_T","_Z","_Z","_Z","ENERGY","_Z","TJ"]
["TJ","Heat","Other Liquid Biofuels","5200",null,"GHEATPRO","OBIOLIQ",{"$f":"PrefilledData!E67","v":0},0,"P","",null,null,null,null,null,null,null,null,null,null,null,null,null,null,null,null,null,null,null,null,null,null,null,null,null,null,null,null,null,null,null,null,null,null,null,null,null,null,null,null,null,null,null,null,null,null,null,null,null,null,null,null,null,null,null,null,null,null,null,null,null,null,null,null,null,null,null,null,null,null,null,null,null,null,null,null,null,null,null,null,null,null,null,null,null,null,null,null,null,null,null,null,null,null,null,null,null,null,null,null,null,null,null,null,null,null,null,null,0,"P","",{"$f":"ELECTRICITY!$S$1","v":"ZZ"},"H8000","GROSPROD","_Z","COMBBIOT","_T","_Z","_Z","_Z","ENERGY","_Z","TJ"]
["TJ","Heat","   of which from sustainable bioliquids",null,null,null,null,{"$f":"PrefilledData!B171*41.868","v":0},0,"P","",null,null,null,null,null,null,null,null,null,null,null,null,null,null,null,null,null,null,null,null,null,null,null,null,null,null,null,null,null,null,null,null,null,null,null,null,null,null,null,null,null,null,null,null,null,null,null,null,null,null,null,null,null,null,null,null,null,null,null,null,null,null,null,null,null,null,null,null,null,null,null,null,null,null,null,null,null,null,null,null,null,null,null,null,null,null,null,null,null,null,null,null,null,null,null,null,null,null,null,null,null,null,null,null,null,null,null,null,0,"P","",{"$f":"ELECTRICITY!$S$1","v":"ZZ"},"H8000","GROSPROD","_Z","BLBIOLS","_T","_Z","_Z","_Z","ENERGY","_Z","TJ"]
["TJ","Heat","Anthracite","5200",null,"GHEATPRO","ANTCOAL",{"$f":"PrefilledData!E8","v":0},0,"P","",null,null,null,null,null,null,null,null,null,null,null,null,null,null,null,null,null,null,null,null,null,null,null,null,null,null,null,null,null,null,null,null,null,null,null,null,null,null,null,null,null,null,null,null,null,null,null,null,null,null,null,null,null,null,null,null,null,null,null,null,null,null,null,null,null,null,null,null,null,null,null,null,null,null,null,null,null,null,null,null,null,null,null,null,null,null,null,null,null,null,null,null,null,null,null,null,null,null,null,null,null,null,null,null,null,null,null,null,0,"P","",{"$f":"ELECTRICITY!$S$1","v":"ZZ"},"H8000","GROSPROD","_Z","COMBANTH","_T","_Z","_Z","_Z","ENERGY","_Z","TJ"]
["TJ","Heat","Coking Coal","5200",null,"GHEATPRO","COKCOAL",{"$f":"PrefilledData!E9","v":0},0,"P","",null,null,null,null,null,null,null,null,null,null,null,null,null,null,null,null,null,null,null,null,null,null,null,null,null,null,null,null,null,null,null,null,null,null,null,null,null,null,null,null,null,null,null,null,null,null,null,null,null,null,null,null,null,null,null,null,null,null,null,null,null,null,null,null,null,null,null,null,null,null,null,null,null,null,null,null,null,null,null,null,null,null,null,null,null,null,null,null,null,null,null,null,null,null,null,null,null,null,null,null,null,null,null,null,null,null,null,null,0,"P","",{"$f":"ELECTRICITY!$S$1","v":"ZZ"},"H8000","GROSPROD","_Z","COMBCOKING","_T","_Z","_Z","_Z","ENERGY","_Z","TJ"]
["TJ","Heat","Other Bituminous Coal","5200",null,"GHEATPRO","BITCOAL",{"$f":"PrefilledData!E10","v":0},0,"P","",null,null,null,null,null,null,null,null,null,null,null,null,null,null,null,null,null,null,null,null,null,null,null,null,null,null,null,null,null,null,null,null,null,null,null,null,null,null,null,null,null,null,null,null,null,null,null,null,null,null,null,null,null,null,null,null,null,null,null,null,null,null,null,null,null,null,null,null,null,null,null,null,null,null,null,null,null,null,null,null,null,null,null,null,null,null,null,null,null,null,null,null,null,null,null,null,null,null,null,null,null,null,null,null,null,null,null,null,0,"P","",{"$f":"ELECTRICITY!$S$1","v":"ZZ"},"H8000","GROSPROD","_Z","COMBOTHBIT","_T","_Z","_Z","_Z","ENERGY","_Z","TJ"]
["TJ","Heat","Sub-Bituminous Coal","5200",null,"GHEATPRO","SUBCOAL",{"$f":"PrefilledData!E11","v":0},0,"P","",null,null,null,null,null,null,null,null,null,null,null,null,null,null,null,null,null,null,null,null,null,null,null,null,null,null,null,null,null,null,null,null,null,null,null,null,null,null,null,null,null,null,null,null,null,null,null,null,null,null,null,null,null,null,null,null,null,null,null,null,null,null,null,null,null,null,null,null,null,null,null,null,null,null,null,null,null,null,null,null,null,null,null,null,null,null,null,null,null,null,null,null,null,null,null,null,null,null,null,null,null,null,null,null,null,null,null,null,0,"P","",{"$f":"ELECTRICITY!$S$1","v":"ZZ"},"H8000","GROSPROD","_Z","COMBSUBBIT","_T","_Z","_Z","_Z","ENERGY","_Z","TJ"]
["TJ","Heat","Lignite","5200",null,"GHEATPRO","LIGNITE",{"$f":"PrefilledData!E12","v":0},0,"P","",null,null,null,null,null,null,null,null,null,null,null,null,null,null,null,null,null,null,null,null,null,null,null,null,null,null,null,null,null,null,null,null,null,null,null,null,null,null,null,null,null,null,null,null,null,null,null,null,null,null,null,null,null,null,null,null,null,null,null,null,null,null,null,null,null,null,null,null,null,null,null,null,null,null,null,null,null,null,null,null,null,null,null,null,null,null,null,null,null,null,null,null,null,null,null,null,null,null,null,null,null,null,null,null,null,null,null,null,0,"P","",{"$f":"ELECTRICITY!$S$1","v":"ZZ"},"H8000","GROSPROD","_Z","COMBLIGNIT","_T","_Z","_Z","_Z","ENERGY","_Z","TJ"]
["TJ","Heat","Patent Fuel","5200",null,"GHEATPRO","PATFUEL",{"$f":"PrefilledData!E15","v":0},0,"P","",null,null,null,null,null,null,null,null,null,null,null,null,null,null,null,null,null,null,null,null,null,null,null,null,null,null,null,null,null,null,null,null,null,null,null,null,null,null,null,null,null,null,null,null,null,null,null,null,null,null,null,null,null,null,null,null,null,null,null,null,null,null,null,null,null,null,null,null,null,null,null,null,null,null,null,null,null,null,null,null,null,null,null,null,null,null,null,null,null,null,null,null,null,null,null,null,null,null,null,null,null,null,null,null,null,null,null,null,0,"P","",{"$f":"ELECTRICITY!$S$1","v":"ZZ"},"H8000","GROSPROD","_Z","COMBPATFL","_T","_Z","_Z","_Z","ENERGY","_Z","TJ"]
["TJ","Heat","Coke Oven Coke","5200",null,"GHEATPRO","OVENCOKE",{"$f":"PrefilledData!E13","v":0},0,"P","",null,null,null,null,null,null,null,null,null,null,null,null,null,null,null,null,null,null,null,null,null,null,null,null,null,null,null,null,null,null,null,null,null,null,null,null,null,null,null,null,null,null,null,null,null,null,null,null,null,null,null,null,null,null,null,null,null,null,null,null,null,null,null,null,null,null,null,null,null,null,null,null,null,null,null,null,null,null,null,null,null,null,null,null,null,null,null,null,null,null,null,null,null,null,null,null,null,null,null,null,null,null,null,null,null,null,null,null,0,"P","",{"$f":"ELECTRICITY!$S$1","v":"ZZ"},"H8000","GROSPROD","_Z","COMBCOKE","_T","_Z","_Z","_Z","ENERGY","_Z","TJ"]
["TJ","Heat","Gas Coke","5200",null,"GHEATPRO","GASCOKE",{"$f":"PrefilledData!E14","v":0},0,"P","",null,null,null,null,null,null,null,null,null,null,null,null,null,null,null,null,null,null,null,null,null,null,null,null,null,null,null,null,null,null,null,null,null,null,null,null,null,null,null,null,null,null,null,null,null,null,null,null,null,null,null,null,null,null,null,null,null,null,null,null,null,null,null,null,null,null,null,null,null,null,null,null,null,null,null,null,null,null,null,null,null,null,null,null,null,null,null,null,null,null,null,null,null,null,null,null,null,null,null,null,null,null,null,null,null,null,null,null,0,"P","",{"$f":"ELECTRICITY!$S$1","v":"ZZ"},"H8000","GROSPROD","_Z","COMBGASCOK","_T","_Z","_Z","_Z","ENERGY","_Z","TJ"]
["TJ","Heat","Coal Tar","5200",null,"GHEATPRO","COALTAR",{"$f":"PrefilledData!E17","v":0},0,"P","",null,null,null,null,null,null,null,null,null,null,null,null,null,null,null,null,null,null,null,null,null,null,null,null,null,null,null,null,null,null,null,null,null,null,null,null,null,null,null,null,null,null,null,null,null,null,null,null,null,null,null,null,null,null,null,null,null,null,null,null,null,null,null,null,null,null,null,null,null,null,null,null,null,null,null,null,null,null,null,null,null,null,null,null,null,null,null,null,null,null,null,null,null,null,null,null,null,null,null,null,null,null,null,null,null,null,null,null,0,"P","",{"$f":"ELECTRICITY!$S$1","v":"ZZ"},"H8000","GROSPROD","_Z","COMBCOALTAR","_T","_Z","_Z","_Z","ENERGY","_Z","TJ"]
["TJ","Heat","BKB","5200",null,"GHEATPRO","BKB",{"$f":"PrefilledData!E16","v":0},0,"P","",null,null,null,null,null,null,null,null,null,null,null,null,null,null,null,null,null,null,null,null,null,null,null,null,null,null,null,null,null,null,null,null,null,null,null,null,null,null,null,null,null,null,null,null,null,null,null,null,null,null,null,null,null,null,null,null,null,null,null,null,null,null,null,null,null,null,null,null,null,null,null,null,null,null,null,null,null,null,null,null,null,null,null,null,null,null,null,null,null,null,null,null,null,null,null,null,null,null,null,null,null,null,null,null,null,null,null,null,0,"P","",{"$f":"ELECTRICITY!$S$1","v":"ZZ"},"H8000","GROSPROD","_Z","COMBBKB","_T","_Z","_Z","_Z","ENERGY","_Z","TJ"]
["TJ","Heat","Gas Works Gas","5200",null,"GHEATPRO","GASWKSGS",{"$f":"PrefilledData!E20","v":0},0,"P","",null,null,null,null,null,null,null,null,null,null,null,null,null,null,null,null,null,null,null,null,null,null,null,null,null,null,null,null,null,null,null,null,null,null,null,null,null,null,null,null,null,null,null,null,null,null,null,null,null,null,null,null,null,null,null,null,null,null,null,null,null,null,null,null,null,null,null,null,null,null,null,null,null,null,null,null,null,null,null,null,null,null,null,null,null,null,null,null,null,null,null,null,null,null,null,null,null,null,null,null,null,null,null,null,null,null,null,null,0,"P","",{"$f":"ELECTRICITY!$S$1","v":"ZZ"},"H8000","GROSPROD","_Z","COMBGASWKSG","_T","_Z","_Z","_Z","ENERGY","_Z","TJ"]
["TJ","Heat","Coke Oven Gas","5200",null,"GHEATPRO","COKEOVGS",{"$f":"PrefilledData!E19","v":0},0,"P","",null,null,null,null,null,null,null,null,null,null,null,null,null,null,null,null,null,null,null,null,null,null,null,null,null,null,null,null,null,null,null,null,null,null,null,null,null,null,null,null,null,null,null,null,null,null,null,null,null,null,null,null,null,null,null,null,null,null,null,null,null,null,null,null,null,null,null,null,null,null,null,null,null,null,null,null,null,null,null,null,null,null,null,null,null,null,null,null,null,null,null,null,null,null,null,null,null,null,null,null,null,null,null,null,null,null,null,null,0,"P","",{"$f":"ELECTRICITY!$S$1","v":"ZZ"},"H8000","GROSPROD","_Z","COMBCOALGAS","_T","_Z","_Z","_Z","ENERGY","_Z","TJ"]
["TJ","Heat","Blast Furnace Gas","5200",null,"GHEATPRO","BLFURGS",{"$f":"PrefilledData!E21","v":0},0,"P","",null,null,null,null,null,null,null,null,null,null,null,null,null,null,null,null,null,null,null,null,null,null,null,null,null,null,null,null,null,null,null,null,null,null,null,null,null,null,null,null,null,null,null,null,null,null,null,null,null,null,null,null,null,null,null,null,null,null,null,null,null,null,null,null,null,null,null,null,null,null,null,null,null,null,null,null,null,null,null,null,null,null,null,null,null,null,null,null,null,null,null,null,null,null,null,null,null,null,null,null,null,null,null,null,null,null,null,null,0,"P","",{"$f":"ELECTRICITY!$S$1","v":"ZZ"},"H8000","GROSPROD","_Z","COMBBLFGAS","_T","_Z","_Z","_Z","ENERGY","_Z","TJ"]
["TJ","Heat","Other Recovered Gases","5200",null,"GHEATPRO","OGASES",{"$f":"PrefilledData!E22","v":0},0,"P","",null,null,null,null,null,null,null,null,null,null,null,null,null,null,null,null,null,null,null,null,null,null,null,null,null,null,null,null,null,null,null,null,null,null,null,null,null,null,null,null,null,null,null,null,null,null,null,null,null,null,null,null,null,null,null,null,null,null,null,null,null,null,null,null,null,null,null,null,null,null,null,null,null,null,null,null,null,null,null,null,null,null,null,null,null,null,null,null,null,null,null,null,null,null,null,null,null,null,null,null,null,null,null,null,null,null,null,null,0,"P","",{"$f":"ELECTRICITY!$S$1","v":"ZZ"},"H8000","GROSPROD","_Z","COMBOTHGAS","_T","_Z","_Z","_Z","ENERGY","_Z","TJ"]
["TJ","Heat","Peat","5200",null,"GHEATPRO","PEAT",{"$f":"PrefilledData!E24","v":0},0,"P","",null,null,null,null,null,null,null,null,null,null,null,null,null,null,null,null,null,null,null,null,null,null,null,null,null,null,null,null,null,null,null,null,null,null,null,null,null,null,null,null,null,null,null,null,null,null,null,null,null,null,null,null,null,null,null,null,null,null,null,null,null,null,null,null,null,null,null,null,null,null,null,null,null,null,null,null,null,null,null,null,null,null,null,null,null,null,null,null,null,null,null,null,null,null,null,null,null,null,null,null,null,null,null,null,null,null,null,null,0,"P","",{"$f":"ELECTRICITY!$S$1","v":"ZZ"},"H8000","GROSPROD","_Z","COMBPEAT","_T","_Z","_Z","_Z","ENERGY","_Z","TJ"]
["TJ","Heat","Peat Products","5200",null,"GHEATPRO","PEATPROD",{"$f":"PrefilledData!E25","v":0},0,"P","",null,null,null,null,null,null,null,null,null,null,null,null,null,null,null,null,null,null,null,null,null,null,null,null,null,null,null,null,null,null,null,null,null,null,null,null,null,null,null,null,null,null,null,null,null,null,null,null,null,null,null,null,null,null,null,null,null,null,null,null,null,null,null,null,null,null,null,null,null,null,null,null,null,null,null,null,null,null,null,null,null,null,null,null,null,null,null,null,null,null,null,null,null,null,null,null,null,null,null,null,null,null,null,null,null,null,null,null,0,"P","",{"$f":"ELECTRICITY!$S$1","v":"ZZ"},"H8000","GROSPROD","_Z","COMBPEATPR","_T","_Z","_Z","_Z","ENERGY","_Z","TJ"]
["TJ","Heat","Oil Shale and Oil Sands","5200",null,"GHEATPRO","OILSHALE",{"$f":"PrefilledData!E26","v":0},0,"P","",null,null,null,null,null,null,null,null,null,null,null,null,null,null,null,null,null,null,null,null,null,null,null,null,null,null,null,null,null,null,null,null,null,null,null,null,null,null,null,null,null,null,null,null,null,null,null,null,null,null,null,null,null,null,null,null,null,null,null,null,null,null,null,null,null,null,null,null,null,null,null,null,null,null,null,null,null,null,null,null,null,null,null,null,null,null,null,null,null,null,null,null,null,null,null,null,null,null,null,null,null,null,null,null,null,null,null,null,0,"P","",{"$f":"ELECTRICITY!$S$1","v":"ZZ"},"H8000","GROSPROD","_Z","COMBOILSH","_T","_Z","_Z","_Z","ENERGY","_Z","TJ"]
["TJ","Heat","Crude Oil","5200",null,"GHEATPRO","CRUDEOIL",{"$f":"PrefilledData!E29","v":0},0,"P","",null,null,null,null,null,null,null,null,null,null,null,null,null,null,null,null,null,null,null,null,null,null,null,null,null,null,null,null,null,null,null,null,null,null,null,null,null,null,null,null,null,null,null,null,null,null,null,null,null,null,null,null,null,null,null,null,null,null,null,null,null,null,null,null,null,null,null,null,null,null,null,null,null,null,null,null,null,null,null,null,null,null,null,null,null,null,null,null,null,null,null,null,null,null,null,null,null,null,null,null,null,null,null,null,null,null,null,null,0,"P","",{"$f":"ELECTRICITY!$S$1","v":"ZZ"},"H8000","GROSPROD","_Z","COMBCRUDE","_T","_Z","_Z","_Z","ENERGY","_Z","TJ"]
["TJ","Heat","Natural Gas Liquids","5200",null,"GHEATPRO","NGL",{"$f":"PrefilledData!E30","v":0},0,"P","",null,null,null,null,null,null,null,null,null,null,null,null,null,null,null,null,null,null,null,null,null,null,null,null,null,null,null,null,null,null,null,null,null,null,null,null,null,null,null,null,null,null,null,null,null,null,null,null,null,null,null,null,null,null,null,null,null,null,null,null,null,null,null,null,null,null,null,null,null,null,null,null,null,null,null,null,null,null,null,null,null,null,null,null,null,null,null,null,null,null,null,null,null,null,null,null,null,null,null,null,null,null,null,null,null,null,null,null,0,"P","",{"$f":"ELECTRICITY!$S$1","v":"ZZ"},"H8000","GROSPROD","_Z","COMBNGL","_T","_Z","_Z","_Z","ENERGY","_Z","TJ"]
["TJ","Heat","Refinery Gas","5200",null,"GHEATPRO","REFINGAS",{"$f":"PrefilledData!E34","v":0},0,"P","",null,null,null,null,null,null,null,null,null,null,null,null,null,null,null,null,null,null,null,null,null,null,null,null,null,null,null,null,null,null,null,null,null,null,null,null,null,null,null,null,null,null,null,null,null,null,null,null,null,null,null,null,null,null,null,null,null,null,null,null,null,null,null,null,null,null,null,null,null,null,null,null,null,null,null,null,null,null,null,null,null,null,null,null,null,null,null,null,null,null,null,null,null,null,null,null,null,null,null,null,null,null,null,null,null,null,null,null,0,"P","",{"$f":"ELECTRICITY!$S$1","v":"ZZ"},"H8000","GROSPROD","_Z","COMBREFGAS","_T","_Z","_Z","_Z","ENERGY","_Z","TJ"]
["TJ","Heat","Liquefied Petroleum Gases","5200",null,"GHEATPRO","LPG",{"$f":"PrefilledData!E36","v":0},0,"P","",null,null,null,null,null,null,null,null,null,null,null,null,null,null,null,null,null,null,null,null,null,null,null,null,null,null,null,null,null,null,null,null,null,null,null,null,null,null,null,null,null,null,null,null,null,null,null,null,null,null,null,null,null,null,null,null,null,null,null,null,null,null,null,null,null,null,null,null,null,null,null,null,null,null,null,null,null,null,null,null,null,null,null,null,null,null,null,null,null,null,null,null,null,null,null,null,null,null,null,null,null,null,null,null,null,null,null,null,0,"P","",{"$f":"ELECTRICITY!$S$1","v":"ZZ"},"H8000","GROSPROD","_Z","COMBLPG","_T","_Z","_Z","_Z","ENERGY","_Z","TJ"]
["TJ","Heat","Naphtha","5200",null,"GHEATPRO","NAPHTHA",{"$f":"PrefilledData!E37","v":0},0,"P","",null,null,null,null,null,null,null,null,null,null,null,null,null,null,null,null,null,null,null,null,null,null,null,null,null,null,null,null,null,null,null,null,null,null,null,null,null,null,null,null,null,null,null,null,null,null,null,null,null,null,null,null,null,null,null,null,null,null,null,null,null,null,null,null,null,null,null,null,null,null,null,null,null,null,null,null,null,null,null,null,null,null,null,null,null,null,null,null,null,null,null,null,null,null,null,null,null,null,null,null,null,null,null,null,null,null,null,null,0,"P","",{"$f":"ELECTRICITY!$S$1","v":"ZZ"},"H8000","GROSPROD","_Z","COMBNAPHTA","_T","_Z","_Z","_Z","ENERGY","_Z","TJ"]
["TJ","Heat","Kerosene Type Jet Fuel","5200",null,"GHEATPRO","JETKERO",{"$f":"PrefilledData!E41","v":0},0,"P",{"$f":"IF(ISERROR(I36/H36),\"\",(I36/H36)-1)","v":""},null,null,null,null,null,null,null,null,null,null,null,null,null,null,null,null,null,null,null,null,null,null,null,null,null,null,null,null,null,null,null,null,null,null,null,null,null,null,null,null,null,null,null,null,null,null,null,null,null,null,null,null,null,null,null,null,null,null,null,null,null,null,null,null,null,null,null,null,null,null,null,null,null,null,null,null,null,null,null,null,null,null,null,null,null,null,null,null,null,null,null,null,null,null,null,null,null,null,null,null,null,null,null,null,null,null,null,null,0,"P","",{"$f":"ELECTRICITY!$S$1","v":"ZZ"},"H8000","GROSPROD","_Z","COMBKEROJET","_T","_Z","_Z","_Z","ENERGY","_Z","TJ"]
["TJ","Heat","Other Kerosene","5200",null,"GHEATPRO","OTHKERO",{"$f":"PrefilledData!E42","v":0},0,"P","",null,null,null,null,null,null,null,null,null,null,null,null,null,null,null,null,null,null,null,null,null,null,null,null,null,null,null,null,null,null,null,null,null,null,null,null,null,null,null,null,null,null,null,null,null,null,null,null,null,null,null,null,null,null,null,null,null,null,null,null,null,null,null,null,null,null,null,null,null,null,null,null,null,null,null,null,null,null,null,null,null,null,null,null,null,null,null,null,null,null,null,null,null,null,null,null,null,null,null,null,null,null,null,null,null,null,null,null,0,"P","",{"$f":"ELECTRICITY!$S$1","v":"ZZ"},"H8000","GROSPROD","_Z","COMBKEROOTH","_T","_Z","_Z","_Z","ENERGY","_Z","TJ"]
["TJ","Heat","Gas/Diesel Oil","5200",null,"GHEATPRO","GASDIES",{"$f":"PrefilledData!E43","v":0},0,"P","",null,null,null,null,null,null,null,null,null,null,null,null,null,null,null,null,null,null,null,null,null,null,null,null,null,null,null,null,null,null,null,null,null,null,null,null,null,null,null,null,null,null,null,null,null,null,null,null,null,null,null,null,null,null,null,null,null,null,null,null,null,null,null,null,null,null,null,null,null,null,null,null,null,null,null,null,null,null,null,null,null,null,null,null,null,null,null,null,null,null,null,null,null,null,null,null,null,null,null,null,null,null,null,null,null,null,null,null,0,"P","",{"$f":"ELECTRICITY!$S$1","v":"ZZ"},"H8000","GROSPROD","_Z","COMBGASDIES","_T","_Z","_Z","_Z","ENERGY","_Z","TJ"]
["TJ","Heat","Residual Fuel Oil","5200",null,"GHEATPRO","RESFUEL",{"$f":"PrefilledData!E44","v":0},0,"P","",null,null,null,null,null,null,null,null,null,null,null,null,null,null,null,null,null,null,null,null,null,null,null,null,null,null,null,null,null,null,null,null,null,null,null,null,null,null,null,null,null,null,null,null,null,null,null,null,null,null,null,null,null,null,null,null,null,null,null,null,null,null,null,null,null,null,null,null,null,null,null,null,null,null,null,null,null,null,null,null,null,null,null,null,null,null,null,null,null,null,null,null,null,null,null,null,null,null,null,null,null,null,null,null,null,null,null,null,0,"P","",{"$f":"ELECTRICITY!$S$1","v":"ZZ"},"H8000","GROSPROD","_Z","COMBFUELOIL","_T","_Z","_Z","_Z","ENERGY","_Z","TJ"]
["TJ","Heat","Bitumen","5200",null,"GHEATPRO","BITUMEN",{"$f":"PrefilledData!E49","v":0},0,"P","",null,null,null,null,null,null,null,null,null,null,null,null,null,null,null,null,null,null,null,null,null,null,null,null,null,null,null,null,null,null,null,null,null,null,null,null,null,null,null,null,null,null,null,null,null,null,null,null,null,null,null,null,null,null,null,null,null,null,null,null,null,null,null,null,null,null,null,null,null,null,null,null,null,null,null,null,null,null,null,null,null,null,null,null,null,null,null,null,null,null,null,null,null,null,null,null,null,null,null,null,null,null,null,null,null,null,null,null,0,"P","",{"$f":"ELECTRICITY!$S$1","v":"ZZ"},"H8000","GROSPROD","_Z","COMBBITUMEN","_T","_Z","_Z","_Z","ENERGY","_Z","TJ"]
["TJ","Heat","Petroleum Coke","5200",null,"GHEATPRO","PETCOKE",{"$f":"PrefilledData!E48","v":0},0,"P","",null,null,null,null,null,null,null,null,null,null,null,null,null,null,null,null,null,null,null,null,null,null,null,null,null,null,null,null,null,null,null,null,null,null,null,null,null,null,null,null,null,null,null,null,null,null,null,null,null,null,null,null,null,null,null,null,null,null,null,null,null,null,null,null,null,null,null,null,null,null,null,null,null,null,null,null,null,null,null,null,null,null,null,null,null,null,null,null,null,null,null,null,null,null,null,null,null,null,null,null,null,null,null,null,null,null,null,null,0,"P","",{"$f":"ELECTRICITY!$S$1","v":"ZZ"},"H8000","GROSPROD","_Z","COMBPETCOKE","_T","_Z","_Z","_Z","ENERGY","_Z","TJ"]
["TJ","Heat","Other Oil Products","5200",null,"GHEATPRO","OPRODS",{"$f":"PrefilledData!E50","v":0},0,"P","",null,null,null,null,null,null,null,null,null,null,null,null,null,null,null,null,null,null,null,null,null,null,null,null,null,null,null,null,null,null,null,null,null,null,null,null,null,null,null,null,null,null,null,null,null,null,null,null,null,null,null,null,null,null,null,null,null,null,null,null,null,null,null,null,null,null,null,null,null,null,null,null,null,null,null,null,null,null,null,null,null,null,null,null,null,null,null,null,null,null,null,null,null,null,null,null,null,null,null,null,null,null,null,null,null,null,null,null,0,"P","",{"$f":"ELECTRICITY!$S$1","v":"ZZ"},"H8000","GROSPROD","_Z","COMBOILOTH","_T","_Z","_Z","_Z","ENERGY","_Z","TJ"]
["TJ","Heat","Natural Gas","5200",null,"GHEATPRO","NATGAS",{"$f":"PrefilledData!E27","v":0},0,"P","",null,null,null,null,null,null,null,null,null,null,null,null,null,null,null,null,null,null,null,null,null,null,null,null,null,null,null,null,null,null,null,null,null,null,null,null,null,null,null,null,null,null,null,null,null,null,null,null,null,null,null,null,null,null,null,null,null,null,null,null,null,null,null,null,null,null,null,null,null,null,null,null,null,null,null,null,null,null,null,null,null,null,null,null,null,null,null,null,null,null,null,null,null,null,null,null,null,null,null,null,null,null,null,null,null,null,null,null,0,"P","",{"$f":"ELECTRICITY!$S$1","v":"ZZ"},"H8000","GROSPROD","_Z","COMBGAS","_T","_Z","_Z","_Z","ENERGY","_Z","TJ"]
["TJ","Heat","Heat pumps","5200",null,"GHEATPRO","HEATPUMP",{"$f":"PrefilledData!E58","v":0},0,"P","",null,null,null,null,null,null,null,null,null,null,null,null,null,null,null,null,null,null,null,null,null,null,null,null,null,null,null,null,null,null,null,null,null,null,null,null,null,null,null,null,null,null,null,null,null,null,null,null,null,null,null,null,null,null,null,null,null,null,null,null,null,null,null,null,null,null,null,null,null,null,null,null,null,null,null,null,null,null,null,null,null,null,null,null,null,null,null,null,null,null,null,null,null,null,null,null,null,null,null,null,null,null,null,null,null,null,null,null,0,"P","",{"$f":"ELECTRICITY!$S$1","v":"ZZ"},"H8000","GROSPROD","_Z","HEATPUMP","_T","_Z","_Z","_Z","ENERGY","_Z","TJ"]
["TJ","Heat","Electric boilers","5200",null,"GHEATPRO","BOILER",{"$f":"PrefilledData!E91","v":0},0,"P","",null,null,null,null,null,null,null,null,null,null,null,null,null,null,null,null,null,null,null,null,null,null,null,null,null,null,null,null,null,null,null,null,null,null,null,null,null,null,null,null,null,null,null,null,null,null,null,null,null,null,null,null,null,null,null,null,null,null,null,null,null,null,null,null,null,null,null,null,null,null,null,null,null,null,null,null,null,null,null,null,null,null,null,null,null,null,null,null,null,null,null,null,null,null,null,null,null,null,null,null,null,null,null,null,null,null,null,null,0,"P","",{"$f":"ELECTRICITY!$S$1","v":"ZZ"},"H8000","GROSPROD","_Z","BOILER","_T","_Z","_Z","_Z","ENERGY","_Z","TJ"]
["TJ","Heat","Heat from chemical sources","5200",null,"GHEATPRO","CHEMHEAT",{"$f":"PrefilledData!E119+PrefilledData!F119","v":0},0,"P","",null,null,null,null,null,null,null,null,null,null,null,null,null,null,null,null,null,null,null,null,null,null,null,null,null,null,null,null,null,null,null,null,null,null,null,null,null,null,null,null,null,null,null,null,null,null,null,null,null,null,null,null,null,null,null,null,null,null,null,null,null,null,null,null,null,null,null,null,null,null,null,null,null,null,null,null,null,null,null,null,null,null,null,null,null,null,null,null,null,null,null,null,null,null,null,null,null,null,null,null,null,null,null,null,null,null,null,null,0,"P","",{"$f":"ELECTRICITY!$S$1","v":"ZZ"},"H8000","GROSPROD","_Z","CHEMHEAT","_T","_Z","_Z","_Z","ENERGY","_Z","TJ"]
["TJ","Heat","Other sources","5200",null,"GHEATPRO","OTHER",{"$f":"PrefilledData!C119+PrefilledData!D119","v":0},0,"P","",null,null,null,null,null,null,null,null,null,null,null,null,null,null,null,null,null,null,null,null,null,null,null,null,null,null,null,null,null,null,null,null,null,null,null,null,null,null,null,null,null,null,null,null,null,null,null,null,null,null,null,null,null,null,null,null,null,null,null,null,null,null,null,null,null,null,null,null,null,null,null,null,null,null,null,null,null,null,null,null,null,null,null,null,null,null,null,null,null,null,null,null,null,null,null,null,null,null,null,null,null,null,null,null,null,null,null,null,0,"P","",{"$f":"ELECTRICITY!$S$1","v":"ZZ"},"H8000","GROSPROD","_Z","OTHERSO","_T","_Z","_Z","_Z","ENERGY","_Z","TJ"]
["TJ","Heat","TOTAL GROSS PRODUCTION",null,null,null,null,{"$f":"SUM(H2:H47)","v":0},{"$f":"SUM(I2:I12,I14:I47)","v":0},"P","",null,null,null,null,null,null,null,null,null,null,null,null,null,null,null,null,null,null,null,null,null,null,null,null,null,null,null,null,null,null,null,null,null,null,null,null,null,null,null,null,null,null,null,null,null,null,null,null,null,null,null,null,null,null,null,null,null,null,null,null,null,null,null,null,null,null,null,null,null,null,null,null,null,null,null,null,null,null,null,null,null,null,null,null,null,null,null,null,null,null,null,null,null,null,null,null,null,null,null,null,null,null,null,null,null,null,null,null,0,"P","",{"$f":"ELECTRICITY!$S$1","v":"ZZ"},"H8000","GROSPROD","_Z","_Z","_Z","_Z","_Z","_Z","ENERGY","_Z","TJ"]
["TJ","Heat","Own use","5200","B_101301","OWNUSE","HEAT",{"$f":"PrefilledData!E95","v":0},0,"P","",null,null,null,null,null,null,null,null,null,null,null,null,null,null,null,null,null,null,null,null,null,null,null,null,null,null,null,null,null,null,null,null,null,null,null,null,null,null,null,null,null,null,null,null,null,null,null,null,null,null,null,null,null,null,null,null,null,null,null,null,null,null,null,null,null,null,null,null,null,null,null,null,null,null,null,null,null,null,null,null,null,null,null,null,null,null,null,null,null,null,null,null,null,null,null,null,null,null,null,null,null,null,null,null,null,null,null,null,0,"P","",{"$f":"ELECTRICITY!$S$1","v":"ZZ"},"H8000","ENERGUSE","POWERPL","_Z","_Z","_Z","_Z","_Z","ENERGY","_Z","TJ"]
["TJ","Heat","TOTAL NET PRODUCTION","5200","17_107100","_T","_T",{"$f":"H48-H49","v":0},{"$f":"I48-I49","v":0},"P","",null,null,null,null,null,null,null,null,null,null,null,null,null,null,null,null,null,null,null,null,null,null,null,null,null,null,null,null,null,null,null,null,null,null,null,null,null,null,null,null,null,null,null,null,null,null,null,null,null,null,null,null,null,null,null,null,null,null,null,null,null,null,null,null,null,null,null,null,null,null,null,null,null,null,null,null,null,null,null,null,null,null,null,null,null,null,null,null,null,null,null,null,null,null,null,null,null,null,null,null,null,null,null,null,null,null,null,null,0,"P","",{"$f":"ELECTRICITY!$S$1","v":"ZZ"},"H8000","NETPROD","_Z","_Z","_Z","_Z","_Z","_Z","ENERGY","_Z","TJ"]
["TJ","Heat","Imports","5200","B_100300","TOTIMPSB","HEAT",{"$f":"PrefilledData!E85","v":0},0,"P","",null,null,null,null,null,null,null,null,null,null,null,null,null,null,null,null,null,null,null,null,null,null,null,null,null,null,null,null,null,null,null,null,null,null,null,null,null,null,null,null,null,null,null,null,null,null,null,null,null,null,null,null,null,null,null,null,null,null,null,null,null,null,null,null,null,null,null,null,null,null,null,null,null,null,null,null,null,null,null,null,null,null,null,null,null,null,null,null,null,null,null,null,null,null,null,null,null,null,null,null,null,null,null,null,null,null,null,null,0,"P","",{"$f":"ELECTRICITY!$S$1","v":"ZZ"},"H8000","IMPORTS","TOTIMPSB","_Z","_Z","_Z","_Z","_Z","ENERGY","_Z","TJ"]
["TJ","Heat","Exports","5200","B_100500","TOTEXPSB","HEAT",{"$f":"PrefilledData!E86","v":0},0,"P","",null,null,null,null,null,null,null,null,null,null,null,null,null,null,null,null,null,null,null,null,null,null,null,null,null,null,null,null,null,null,null,null,null,null,null,null,null,null,null,null,null,null,null,null,null,null,null,null,null,null,null,null,null,null,null,null,null,null,null,null,null,null,null,null,null,null,null,null,null,null,null,null,null,null,null,null,null,null,null,null,null,null,null,null,null,null,null,null,null,null,null,null,null,null,null,null,null,null,null,null,null,null,null,null,null,null,null,null,0,"P","",{"$f":"ELECTRICITY!$S$1","v":"ZZ"},"H8000","EXPORTS","TOTEXPSB","_Z","_Z","_Z","_Z","_Z","ENERGY","_Z","TJ"]
["TJ","Heat","Used for Electricity Production","5200","B_101017","EELE","HEAT",{"$f":"PrefilledData!E90","v":0},0,"P","",null,null,null,null,null,null,null,null,null,null,null,null,null,null,null,null,null,null,null,null,null,null,null,null,null,null,null,null,null,null,null,null,null,null,null,null,null,null,null,null,null,null,null,null,null,null,null,null,null,null,null,null,null,null,null,null,null,null,null,null,null,null,null,null,null,null,null,null,null,null,null,null,null,null,null,null,null,null,null,null,null,null,null,null,null,null,null,null,null,null,null,null,null,null,null,null,null,null,null,null,null,null,null,null,null,null,null,null,0,"P","",{"$f":"ELECTRICITY!$S$1","v":"ZZ"},"H8000","ENERGUSE","ELECPROD","_Z","_Z","_Z","_Z","_Z","ENERGY","_Z","TJ"]
["TJ","Heat","Total heat supply",null,null,"_T","_T",{"$f":"H50+H51-H52-H53","v":0},{"$f":"I50+I51-I52-I53","v":0},"P","",null,null,null,null,null,null,null,null,null,null,null,null,null,null,null,null,null,null,null,null,null,null,null,null,null,null,null,null,null,null,null,null,null,null,null,null,null,null,null,null,null,null,null,null,null,null,null,null,null,null,null,null,null,null,null,null,null,null,null,null,null,null,null,null,null,null,null,null,null,null,null,null,null,null,null,null,null,null,null,null,null,null,null,null,null,null,null,null,null,null,null,null,null,null,null,null,null,null,null,null,null,null,null,null,null,null,null,null,0,"P","",{"$f":"ELECTRICITY!$S$1","v":"ZZ"},"H8000","SUPPLY","INLDEMC","_Z","_Z","_Z","_Z","_Z","ENERGY","_Z","TJ"]
["TJ","Heat","Distribution losses","5200","B_101400","DISTLOSS","HEAT",{"$f":"PrefilledData!E96","v":0},0,"P","",null,null,null,null,null,null,null,null,null,null,null,null,null,null,null,null,null,null,null,null,null,null,null,null,null,null,null,null,null,null,null,null,null,null,null,null,null,null,null,null,null,null,null,null,null,null,null,null,null,null,null,null,null,null,null,null,null,null,null,null,null,null,null,null,null,null,null,null,null,null,null,null,null,null,null,null,null,null,null,null,null,null,null,null,null,null,null,null,null,null,null,null,null,null,null,null,null,null,null,null,null,null,null,null,null,null,null,null,0,"P","",{"$f":"ELECTRICITY!$S$1","v":"ZZ"},"H8000","LOSSES","DISTLOSS","_Z","_Z","_Z","_Z","_Z","ENERGY","_Z","TJ"]
["TJ","Heat","Inland consumption (calculated)",null,null,null,null,{"$f":"H54-H55","v":0},{"$f":"I54-I55","v":0},"P","",null,null,null,null,null,null,null,null,null,null,null,null,null,null,null,null,null,null,null,null,null,null,null,null,null,null,null,null,null,null,null,null,null,null,null,null,null,null,null,null,null,null,null,null,null,null,null,null,null,null,null,null,null,null,null,null,null,null,null,null,null,null,null,null,null,null,null,null,null,null,null,null,null,null,null,null,null,null,null,null,null,null,null,null,null,null,null,null,null,null,null,null,null,null,null,null,null,null,null,null,null,null,null,null,null,null,null,null,0,"P","",{"$f":"ELECTRICITY!$S$1","v":"ZZ"},"H8000","SUPPLY","FINCONSC","_Z","_Z","_Z","_Z","_Z","ENERGY","_Z","TJ"]
["TJ","Heat","Statistical differences",null,null,null,null,{"$f":"H56-H58","v":0},{"$f":"I56-I58","v":0},"P","",null,null,null,null,null,null,null,null,null,null,null,null,null,null,null,null,null,null,null,null,null,null,null,null,null,null,null,null,null,null,null,null,null,null,null,null,null,null,null,null,null,null,null,null,null,null,null,null,null,null,null,null,null,null,null,null,null,null,null,null,null,null,null,null,null,null,null,null,null,null,null,null,null,null,null,null,null,null,null,null,null,null,null,null,null,null,null,null,null,null,null,null,null,null,null,null,null,null,null,null,null,null,null,null,null,null,null,null,0,"P","",{"$f":"ELECTRICITY!$S$1","v":"ZZ"},"H8000","STATDIFF","_Z","_Z","_Z","_Z","_Z","_Z","ENERGY","_Z","TJ"]
["TJ","Heat","Inland consumption (observed)",null,null,null,null,{"$f":"H59+H60+H61+H62","v":0},{"$f":"I59+I60+I61+I62","v":0},"P","",null,null,null,null,null,null,null,null,null,null,null,null,null,null,null,null,null,null,null,null,null,null,null,null,null,null,null,null,null,null,null,null,null,null,null,null,null,null,null,null,null,null,null,null,null,null,null,null,null,null,null,null,null,null,null,null,null,null,null,null,null,null,null,null,null,null,null,null,null,null,null,null,null,null,null,null,null,null,null,null,null,null,null,null,null,null,null,null,null,null,null,null,null,null,null,null,null,null,null,null,null,null,null,null,null,null,null,null,0,"P","",{"$f":"ELECTRICITY!$S$1","v":"ZZ"},"H8000","CONSUMPT","FINCONSO","_Z","_Z","_Z","_Z","_Z","ENERGY","_Z","TJ"]
["TJ","Heat","Energy sector","5200","DB_101300","TOTENGY","HEAT",{"$f":"PrefilledData!E94-PrefilledData!E95","v":0},0,"P","",null,null,null,null,null,null,null,null,null,null,null,null,null,null,null,null,null,null,null,null,null,null,null,null,null,null,null,null,null,null,null,null,null,null,null,null,null,null,null,null,null,null,null,null,null,null,null,null,null,null,null,null,null,null,null,null,null,null,null,null,null,null,null,null,null,null,null,null,null,null,null,null,null,null,null,null,null,null,null,null,null,null,null,null,null,null,null,null,null,null,null,null,null,null,null,null,null,null,null,null,null,null,null,null,null,null,null,null,0,"P","",{"$f":"ELECTRICITY!$S$1","v":"ZZ"},"H8000","ENERGUSE","ENERSECT","_Z","_Z","_Z","_Z","_Z","ENERGY","_Z","TJ"]
["TJ","Heat","Industry sector","5200","DB_101800","TOTIND","HEAT",{"$f":"PrefilledData!E97","v":0},0,"P","",null,null,null,null,null,null,null,null,null,null,null,null,null,null,null,null,null,null,null,null,null,null,null,null,null,null,null,null,null,null,null,null,null,null,null,null,null,null,null,null,null,null,null,null,null,null,null,null,null,null,null,null,null,null,null,null,null,null,null,null,null,null,null,null,null,null,null,null,null,null,null,null,null,null,null,null,null,null,null,null,null,null,null,null,null,null,null,null,null,null,null,null,null,null,null,null,null,null,null,null,null,null,null,null,null,null,null,null,0,"P","",{"$f":"ELECTRICITY!$S$1","v":"ZZ"},"H8000","ENERGUSE","INDUSTRY","_Z","_Z","_Z","_Z","_Z","ENERGY","_Z","TJ"]
["TJ","Heat","Transport sector","5200","B_101900","TOTTRANS","HEAT",null,null,null,null,null,null,null,null,null,null,null,null,null,null,null,null,null,null,null,null,null,null,null,null,null,null,null,null,null,null,null,null,null,null,null,null,null,null,null,null,null,null,null,null,null,null,null,null,null,null,null,null,null,null,null,null,null,null,null,null,null,null,null,null,null,null,null,null,null,null,null,null,null,null,null,null,null,null,null,null,null,null,null,null,null,null,null,null,null,null,null,null,null,null,null,null,null,null,null,null,null,null,null,null,null,null,null,null,null,null,null,null,0,"A",null,{"$f":"ELECTRICITY!$S$1","v":"ZZ"}]
["TJ","Heat","Other sectors","5200","B_102000","TOTOTHER","HEAT",{"$f":"PrefilledData!E99","v":0},0,"P","",null,null,null,null,null,null,null,null,null,null,null,null,null,null,null,null,null,null,null,null,null,null,null,null,null,null,null,null,null,null,null,null,null,null,null,null,null,null,null,null,null,null,null,null,null,null,null,null,null,null,null,null,null,null,null,null,null,null,null,null,null,null,null,null,null,null,null,null,null,null,null,null,null,null,null,null,null,null,null,null,null,null,null,null,null,null,null,null,null,null,null,null,null,null,null,null,null,null,null,null,null,null,null,null,null,null,null,null,0,"P","",{"$f":"ELECTRICITY!$S$1","v":"ZZ"},"H8000","ENERGUSE","OTHSECT","_Z","_T","_Z","_Z","_Z","ENERGY","_Z","TJ"]

{"sheet":"LoadedData","index":5,"n_rows":163,"n_cols":11,"rows_kept":163,"cut":false,"hidden":true,"merged":[]}
[null,null,null,null,{"$f":"COUNTIF(E2:E163, \"Error\")","v":137},"Total Number of Errors"]
[null,null,null,null,null,null,null,null,"Electricity","Nuclear",{"$f":"C4","v":0}]
[null,null,null,null,null,null,null,null,"Electricity","Hydro",{"$f":"C5","v":0}]
[null,null,null,null,{"$f":"IF(A4=F4,\"OK\",\"Error\")","v":"Error"},"Nuclear",null,null,"Electricity","     Pure hydro"]
[null,null,null,null,"Error","Hydro",null,null,"Electricity","     Mixed hydro"]
[null,null,null,null,"Error","   of which: Pumped Hydro",null,null,"Electricity","          of which generation without pumping"]
[null,null,null,null,"Error","Geothermal",null,null,"Electricity","     Pure pumped storage"]
[null,null,null,null,"Error","Solar",null,null,"Electricity","Geothermal",{"$f":"C7","v":0}]
[null,null,null,null,"Error","Tide, Wave, Ocean",null,null,"Electricity","Solar",{"$f":"C8","v":0}]
[null,null,null,null,"Error","Wind",null,null,"Electricity","     Solar photovoltaic"]
[null,null,null,null,"Error","Combustible Fuels",null,null,"Electricity","     Solar thermal"]
[null,null,null,null,"Error","Heat from Chemical Processes",null,null,"Electricity","Tide, wave and ocean",{"$f":"C9","v":0}]
[null,null,null,null,"Error","Other Sources - Electricity",null,null,"Electricity","Wind",{"$f":"C10","v":0}]
[null,null,null,null,"Error","Total Gross Electricity ",null,null,"Electricity","     Onshore"]
[null,null,null,null,"Error","Own use",null,null,"Electricity","     Offshore"]
[null,null,null,null,"Error","Total Net Electricity ",null,null,"Electricity","Industrial Waste (Non-Renew.)",{"$f":"C71","v":0}]
[null,null,null,null,"Error","Total Imports (Balance)",null,null,"Electricity","Municipal Waste (Renew.)",0]
[null,null,null,null,"Error","Total Exports (Balance)",null,null,"Electricity","Municipal Waste (Non-Renew.)",0]
[null,null,null,null,"Error","Used for Heat Pumps",null,null,"Electricity","Solid Biofuels",0]
[null,null,null,null,"Error","Used for Electric Boilers",null,null,"Electricity","Biogases",0]
[null,null,null,null,"Error","Used for Pumped Storage (Pure Hydro Pumping Plants)",null,null,"Electricity","Biodiesel",0]
[null,null,null,null,"Error","Used for Pumped Storage (Mixed Plants)",null,null,"Electricity","Biogasolines",0]
[null,null,null,null,null,null,null,null,"Electricity","Other Liquid Biofuels",0]
[null,null,null,null,"Error","Total Electricity Supply",null,null,"Electricity","   of which from sustainable bioliquids"]
[null,null,null,null,"Error","Distribution losses",null,null,"Electricity","Anthracite",{"$f":"C39","v":0}]
[null,null,null,null,"Error","Final Consumption (calculated)",null,null,"Electricity","Coking Coal",0]
[null,null,null,null,"Error","Statistical Differences",null,null,"Electricity","Other Bituminous Coal",0]
[null,null,null,null,"Error","Final consumption (observed)",null,null,"Electricity","Sub-Bituminous Coal",0]
[null,null,null,null,"Error","Energy sector *",null,null,"Electricity","Lignite",0]
[null,null,null,null,"Error","Industry sector",null,null,"Electricity","Patent Fuel",0]
[null,null,null,null,"Error","Transport sector",null,null,"Electricity","Coke Oven Coke",0]
[null,null,null,null,"Error","Other sectors",null,null,"Electricity","Gas Coke",0]
[null,null,null,null,"Error","   of which: Residential",null,null,"Electricity","Coal Tar",0]
[null,null,null,null,"Error","   of which: Commerical and public services",null,null,"Electricity","BKB",0]
[null,null,null,null,null,null,null,null,"Electricity","Gas Works Gas",0]
[null,null,null,null,null,null,null,null,"Electricity","Coke Oven Gas",0]
[null,null,null,null,null,null,null,null,"Electricity","Blast Furnace Gas",0]
[null,null,null,null,null,null,null,null,"Electricity","Other Recovered Gases",0]
[null,null,null,null,{"$f":"IF(A39=F39,\"OK\",\"Error\")","v":"Error"},"Anthracite",null,null,"Electricity","Peat",0]
[null,null,null,null,"Error","Coking Coal",null,null,"Electricity","Peat Products",0]
[null,null,null,null,"Error","Other Bituminous Coal",null,null,"Electricity","Oil Shale and Oil Sands",0]
[null,null,null,null,"Error","Sub-Bituminous Coal",null,null,"Electricity","Crude Oil",{"$f":"C57","v":0}]
[null,null,null,null,"Error","Lignite",null,null,"Electricity","Natural Gas Liquids",0]
[null,null,null,null,"Error","Patent Fuel",null,null,"Electricity","Refinery Gas",0]
[null,null,null,null,"Error","Coke Oven Coke",null,null,"Electricity","Liquefied Petroleum Gases",0]
[null,null,null,null,"Error","Gas Coke",null,null,"Electricity","Naphtha",0]
[null,null,null,null,"Error","Coal Tar",null,null,"Electricity","Kerosene Type Jet Fuel",0]
[null,null,null,null,"Error","BKB",null,null,"Electricity","Other Kerosene",0]
[null,null,null,null,"Error","Gas Works Gas",null,null,"Electricity","Gas/Diesel Oil",0]
[null,null,null,null,"Error","Coke Oven Gas",null,null,"Electricity","Residual Fuel Oil",0]
[null,null,null,null,"Error","Blast Furnace Gas",null,null,"Electricity","Bitumen",0]
[null,null,null,null,"Error","Other Recovered Gases",null,null,"Electricity","Petroleum Coke",0]
[null,null,null,null,"Error","Peat",null,null,"Electricity","Other Oil Products",0]
[null,null,null,null,"Error","Peat Products",null,null,"Electricity","Natural Gas",{"$f":"C70","v":0}]
[null,null,null,null,"Error","Oil Shale and Oil Sands",null,null,"Electricity","Heat from chemical sources",{"$f":"C12","v":0}]
[null,null,null,null,"Error","Coal Products, Peat Products, Oil Shale and Oil Sands ",null,null,"Electricity","Other sources",{"$f":"C13","v":0}]
[null,null,null,null,"Error","Crude Oil",null,null,"Electricity","TOTAL GROSS PRODUCTION"]
[null,null,null,null,"Error","Natural Gas Liquids",null,null,"Electricity","Own use",{"$f":"C15","v":0}]
[null,null,null,null,"Error","Refinery Gas",null,null,"Electricity","TOTAL NET PRODUCTION"]
[null,null,null,null,"Error","Liquefied Petroleum Gases",null,null,"Electricity","Imports",{"$f":"C17","v":0}]
[null,null,null,null,"Error","Naphtha",null,null,"Electricity","Exports",0]
[null,null,null,null,"Error","Kerosene Type Jet Fuel",null,null,"Electricity","Used for Heat Pumps",0]
[null,null,null,null,"Error","Other Kerosene",null,null,"Electricity","Used for Electric Boilers",0]
[null,null,null,null,"Error","Gas/Diesel Oil",null,null,"Electricity","Used for pumped storage: Pure pumping plants",0]
[null,null,null,null,"Error","Residual Fuel Oil",null,null,"Electricity","Used for pumped storage: Mixed plants",0]
[null,null,null,null,"Error","Bitumen",null,null,"Electricity","Total electricity supply"]
[null,null,null,null,"Error","Petroleum Coke",null,null,"Electricity","Distribution losses",{"$f":"C25","v":0}]
[null,null,null,null,"Error","Other Oil Products",null,null,"Electricity","Inland consumption (calculated)"]
[null,null,null,null,"Error","   Liquid Fuels and Refinery Gas",null,null,"Electricity","Statistical differences"]
[null,null,null,null,"Error","Natural Gas",null,null,"Electricity","Inland consumption (observed)"]
[null,null,null,null,"Error","Industrial Waste (Non-Renew.)",null,null,"Electricity","Energy sector (excluding \"Own use\")",{"$f":"C29","v":0}]
[null,null,null,null,"Error","Municipal Waste (Renew.)",null,null,"Electricity","Industry sector",{"$f":"C30","v":0}]
[null,null,null,null,"Error","Municipal Waste (Non-Renew.)",null,null,"Electricity","Transport sector",{"$f":"C31","v":0}]
[null,null,null,null,"Error","Solid Biofuels",null,null,"Electricity","Other sectors",{"$f":"C32","v":0}]
[null,null,null,null,"Error","Biogases"]
[null,null,null,null,"Error","Biodiesel"]
[null,null,null,null,{"$f":"IF(A77=F77,\"OK\",\"Error\")","v":"Error"},"Biogasolines"]
[null,null,null,null,{"$f":"IF(A78=F78,\"OK\",\"Error\")","v":"Error"},"Other Liquid Biofuels"]
[null,null,null,null,{"$f":"IF(A79=F79,\"OK\",\"Error\")","v":"Error"},"Biofuels and Waste",null,null,"Heat","Nuclear",{"$f":"C93","v":0}]
[null,null,null,null,null,null,null,null,"Heat","Geothermal",{"$f":"C94","v":0}]
[null,null,null,null,null,null,null,null,"Heat","Solar thermal",{"$f":"C95","v":0}]
[null,null,null,null,null,null,null,null,"Heat","Industrial Waste (Non-Renew.)",{"$f":"C155","v":0}]
[null,null,null,null,null,null,null,null,"Heat","Municipal Waste (Renew.)",0]
[null,null,null,null,null,null,null,null,"Heat","Municipal Waste (Non-Renew.)",0]
[null,null,null,null,null,null,null,null,"Heat","Solid Biofuels",0]
[null,null,null,null,null,null,null,null,"Heat","Biogases",0]
[null,null,null,null,null,null,null,null,"Heat","Biodiesel",0]
[null,null,null,null,null,null,null,null,"Heat","Biogasolines",0]
[null,null,null,null,null,null,null,null,"Heat","Other Liquid Biofuels",0]
[null,null,null,null,null,null,null,null,"Heat","   of which from sustainable bioliquids"]
[null,null,null,null,null,null,null,null,"Heat","Anthracite",{"$f":"C123","v":0}]
[null,null,null,null,null,null,null,null,"Heat","Coking Coal",0]
[null,null,null,null,{"$f":"IF(A93=F93,\"OK\",\"Error\")","v":"Error"},"Nuclear",null,null,"Heat","Other Bituminous Coal",0]
[null,null,null,null,{"$f":"IF(A94=F94,\"OK\",\"Error\")","v":"Error"},"Geothermal",null,null,"Heat","Sub-Bituminous Coal",0]
[null,null,null,null,"Error","Solar",null,null,"Heat","Lignite",0]
[null,null,null,null,"Error","Combustible Fuels",null,null,"Heat","Patent Fuel",0]
[null,null,null,null,"Error","Heat Pumps",null,null,"Heat","Coke Oven Coke",0]
[null,null,null,null,"Error","Electric Boilers",null,null,"Heat","Gas Coke",0]
[null,null,null,null,"Error","Heat from Chemical Processes",null,null,"Heat","Coal Tar",0]
[null,null,null,null,"Error","Other Sources - Heat",null,null,"Heat","BKB",0]
[null,null,null,null,"Error","Total Gross Heat",null,null,"Heat","Gas Works Gas",0]
[null,null,null,null,"Error","Own use",null,null,"Heat","Coke Oven Gas",0]
[null,null,null,null,"Error","Total Net Heat",null,null,"Heat","Blast Furnace Gas",0]
[null,null,null,null,"Error","Total Imports (Balance)",null,null,"Heat","Other Recovered Gases",0]
[null,null,null,null,"Error","Total Exports (Balance)",null,null,"Heat","Peat",0]
[null,null,null,null,"Error","Used for Electricity Production",null,null,"Heat","Peat Products",0]
[null,null,null,null,"OK",null,null,null,"Heat","Oil Shale and Oil Sands",0]
[null,null,null,null,"Error","Total Heat Supply",null,null,"Heat","Crude Oil",{"$f":"C141","v":0}]
[null,null,null,null,"Error","Distribution losses",null,null,"Heat","Natural Gas Liquids",0]
[null,null,null,null,"Error","Final Consumption (calculated)",null,null,"Heat","Refinery Gas",0]
[null,null,null,null,"Error","Statistical Differences",null,null,"Heat","Liquefied Petroleum Gases",0]
[null,null,null,null,"Error","Final consumption (observed)",null,null,"Heat","Naphtha",0]
[null,null,null,null,"Error","Energy sector **",null,null,"Heat","Kerosene Type Jet Fuel",0]
[null,null,null,null,"Error","Industry sector",null,null,"Heat","Other Kerosene",0]
[null,null,null,null,"Error","Transport sector",null,null,"Heat","Gas/Diesel Oil",0]
[null,null,null,null,"Error","Other sectors",null,null,"Heat","Residual Fuel Oil",0]
[null,null,null,null,"Error","   of which: Residential",null,null,"Heat","Bitumen",0]
[null,null,null,null,"Error","   of which: Commerical and public services",null,null,"Heat","Petroleum Coke",0]
[null,null,null,null,null,null,null,null,"Heat","Other Oil Products",0]
[null,null,null,null,null,null,null,null,"Heat","Natural Gas",{"$f":"C154","v":0}]
[null,null,null,null,null,null,null,null,"Heat","Heat pumps",{"$f":"C97","v":0}]
[null,null,null,null,null,null,null,null,"Heat","Electric boilers",{"$f":"C98","v":0}]
[null,null,null,null,"Error","Anthracite",null,null,"Heat","Heat from chemical sources",{"$f":"C99","v":0}]
[null,null,null,null,"Error","Coking Coal",null,null,"Heat","Other sources",{"$f":"C100","v":0}]
[null,null,null,null,"Error","Other Bituminous Coal",null,null,"Heat","TOTAL GROSS PRODUCTION"]
[null,null,null,null,"Error","Sub-Bituminous Coal",null,null,"Heat","Own use",{"$f":"C102","v":0}]
[null,null,null,null,"Error","Lignite",null,null,"Heat","TOTAL NET PRODUCTION"]
[null,null,null,null,"Error","Patent Fuel",null,null,"Heat","Imports",{"$f":"C104","v":0}]
[null,null,null,null,"Error","Coke Oven Coke",null,null,"Heat","Exports",{"$f":"C105","v":0}]
[null,null,null,null,"Error","Gas Coke",null,null,"Heat","Used for Electricity Production",{"$f":"C106","v":0}]
[null,null,null,null,"Error","Coal Tar",null,null,"Heat","Total heat supply"]
[null,null,null,null,"Error","BKB",null,null,"Heat","Distribution losses",{"$f":"C109","v":0}]
[null,null,null,null,"Error","Gas Works Gas",null,null,"Heat","Inland consumption (calculated)"]
[null,null,null,null,"Error","Coke Oven Gas",null,null,"Heat","Statistical differences"]
[null,null,null,null,"Error","Blast Furnace Gas",null,null,"Heat","Inland consumption (observed)"]
[null,null,null,null,"Error","Other Recovered Gases",null,null,"Heat","Energy sector",{"$f":"C113","v":0}]
[null,null,null,null,"Error","Peat",null,null,"Heat","Industry sector",{"$f":"C114","v":0}]
[null,null,null,null,"Error","Peat Products",null,null,"Heat","Transport sector"]
[null,null,null,null,"Error","Oil Shale and Oil Sands",null,null,"Heat","Other sectors",{"$f":"C116","v":0}]
[null,null,null,null,"Error","Coal Products, Peat Products, Oil Shale and Oil Sands "]
[null,null,null,null,"Error","Crude Oil"]
[null,null,null,null,"Error","Natural Gas Liquids"]
[null,null,null,null,"Error","Refinery Gas"]
[null,null,null,null,"Error","Liquefied Petroleum Gases"]
[null,null,null,null,"Error","Naphtha"]
[null,null,null,null,"Error","Kerosene Type Jet Fuel"]
[null,null,null,null,"Error","Other Kerosene"]
[null,null,null,null,"Error","Gas/Diesel Oil"]
[null,null,null,null,"Error","Residual Fuel Oil"]
[null,null,null,null,"Error","Bitumen"]
[null,null,null,null,"Error","Petroleum Coke"]
[null,null,null,null,"Error","Other Oil Products"]
[null,null,null,null,"Error","   Liquid Fuels and Refinery Gas"]
[null,null,null,null,"Error","Natural Gas"]
[null,null,null,null,"Error","Industrial Waste (Non-Renew.)"]
[null,null,null,null,"Error","Municipal Waste (Renew.)"]
[null,null,null,null,"Error","Municipal Waste (Non-Renew.)"]
[null,null,null,null,{"$f":"IF(A158=F158,\"OK\",\"Error\")","v":"Error"},"Solid Biofuels"]
[null,null,null,null,"Error","Biogases"]
[null,null,null,null,"Error","Biodiesel"]
[null,null,null,null,"Error","Biogasolines"]
[null,null,null,null,"Error","Other Liquid Biofuels"]
[null,null,null,null,"Error","   Biofuels and Waste"]

{"sheet":"PrefilledData","index":6,"n_rows":0,"n_cols":0,"rows_kept":0,"cut":false,"hidden":true,"merged":[]}

{"sheet":"Parameter_mapping","index":7,"n_rows":3,"n_cols":2,"rows_kept":3,"cut":false,"hidden":true,"merged":[]}
["Data sheet","Parameter sheet"]
["ELECTRICITY","Parameters"]
["HEAT","Parameters"]

{"sheet":"Parameters","index":8,"n_rows":21,"n_cols":7,"rows_kept":21,"cut":false,"hidden":true,"merged":[]}
["Element","Type","PosType","Position",null,"DataStart","DP2"]
["QUEST_SOURCE","DIM","FIX","A_MINIELE",null,"DataEnd","DP85"]
["FREQ","DIM","FIX","A",null,"SkipIncompleteKeys","true"]
["REF_AREA","DIM","COLUMN","DS"]
["ENERGY_PRODUCT","DIM","COLUMN","DT"]
["MAIN_FLOW","DIM","COLUMN","DU"]
["FLOW_BREAKDOWN","DIM","COLUMN","DV"]
["PLANT_TECH","DIM","COLUMN","DW"]
["PLANT_TYPE","DIM","COLUMN","DX"]
["STOCKS","DIM","COLUMN","DY"]
["INFRASTRUCTURE_IND","DIM","COLUMN","DZ"]
["VIS_A_VIS_AREA","DIM","COLUMN","EA"]
["MEASURE_VALUE_TYPE","DIM","COLUMN","EB"]
["TIME_PERIOD","DIM","CELL","I1"]
["FACILITY_ID","DIM","COLUMN","EC"]
["UNIT_MEASURE","DIM","COLUMN","ED"]
["OBS_STATUS","ATT","COLUMN","DQ"]
["CONF_STATUS","ATT","SKIP"]
["COMMENT_OBS","ATT","COLUMN","DR"]
["FACILITY_TYPE","ATT","SKIP"]
["FACILITY_NAME","ATT","SKIP"]